Workbook

Sheet Cover Page
D1: Add company logo
N2: Version 20.6
B8: Add photo
N13: Notes:
N14: This template may require adjustments by individual operators to meet specific reporting requirements as defined in the site Permit(s)
B29: Annual Performance Report 2022
B31: Permit EPR/XP3730QZ
B33: Baddesley EfW Facility
B37: Equitix EEEF WTE Baddesley Limited
B39: Year: | C39: 2022
B41: Address: | C41: Merevale Lane, Atherstone, Warwickshire, CV9 2LA
B43: Tel: | C43: 01827 946317
B45: Email: | C45: Gareth.cullen@kantorenergy.com
B47: Prepared by: | C47: Tim Stocker | F47: Position: | G47: Operations Manager
B49: Approved by: | C49: Gareth Cullen | F49: Position: | G49: Plant Manager
B51: Version: | C51: 1
B53: Issue Date: | C53: 2023-01-31

Sheet Contents
A1: =+'Cover Page'!$B$29 -> Annual Performance Report 2022 | E1: =+'Cover Page'!$B$33 -> Baddesley EfW Facility
A3: Contents | K3: Notes:
A4: Section | B4: Subject | H4: Page | K4: Section references and Page nos. to be inserted
B5: Facility Information | H5: 3 | K5: Sections and Subjects may require adjustment by individual operators to meet specific reporting requirements as defined in the sites Permit(s)
B6: Operational Summary | H6: 4
B7: Operational Data | H7: 6
B8: Performance Form 1 | H8: 7
B9: Energy Form 1 | H9: 8
B10: Permit Compliance | H10: 9
B11: Improvements | H11: 10
B12: Public Liasion | H12: 11
B13: Residue Quality - Optional | H13: 12
B14: Emissions to Water | H14: 13
B15: Emissions to Air (periodically monitored) | H15: 14
B16: Emissions to Air (continuously monitored) | H16: 15
B17: Hydrogen Chloride emissions | H17: 16
B18: Sulphur Dioxdie emsissions | H18: 17
B19: Oxides of Notrigen emissions | H19: 18
B20: Total Organic Carbon emissions | H20: 19
B21: Particulate Matter emissions | H21: 20
B22: Carbon Monoxide emissions | H22: 21
B23: Ammonia emissions | H23: 23
A26: Version Control
A27: Section | B27: Information | H27: Date
A34: Distribution
A35: Copy | B35: Name, Role | H35: No.
A44: This report is required under the Industrial Emissions Directive’s Article 55(2) requirements on reporting and public information on waste incineration plants and co-incineration plants, which require the operator to produce an annual report on the functioning and monitoring of the plant and make it available to the public.

Sheet Facility Info
A1: =+'Cover Page'!$B$29 -> Annual Performance Report 2022 | E1: =+'Cover Page'!$B$33 -> Baddesley EfW Facility
A3: Plant Description and Design | K3: Notes:
A5: The plant has been designed to generate around 10.4 MW of electricity, of which approx. 1.66 MW is consumed by the installation and the remaining 8.74 MW is exported to the national gird. There is 1 combustion line. All RDF is delivered by road and weighed on entry to the site. Waste acceptance procedures is in place to ensure that only those materials which the EfW facility is designed to accept are accepted for treatment. The site is located within the Merevale and Blyth Estate. The Site comprises 1.4 hectares of levelled land surrounded by a landscaped bund, located approximately 0.25 km to the east of the village of Baxterley and 0.8 km to the south east of the village of Baddesley Ensor. | K5: Include summary of plant design, design capacity, no. of combustion lines, electrical and heat capacity and any other general information that descibes the facility, its location and purpose
A20: Summary of Operational Processes and Procedures
A22: The waste delivery vehicles transport the waste to the fuel hall and unload into the bunker. Moving grate technology is used for combusting the waste material. The grate is designed as a stepped grate and is longitudinally inclined. The grate bars are cooled by primary air. Primary combustion air is fed into the furnace through the funnels on the underside of the grates which are equipped with flow regulators. Secondary air is injected at high velocity at the inlet of the first empty pass. This creates turbulence, which assists mixing of secondary air and combustion gases to achieve complete combustion of the gases. The volume of both primary and secondary air is regulated by the combustion control system. An integrated furnace and boiler design is installed. Hot gases from the furnace section pass into the radiation and then into the convection boiler sections, in which steam is raised. Steam raised passes to a single turbine to generate electricity. The EfW facility includes abatement to ensure that releases to air are controlled below the limits specified within the IED. The following flue gas treatment plant is provided: - Skimmer; - Hydrated lime and powdered activated carbon (PAC) injection; - Baghouse filter; and - Selective Catalytic Reduction (SCR). The residues of the bag filter and the skimmer are collected and directed to separate residue silos. The residue silos are designed to discharge product via an enclosed loading chute. Boiler and economiser fly ash is discharged into a skip and bottom ash is transferred to an outdoor, covered IBA bay. Clean flue gases exiting the abatement system are discharged through one 25 m stack. | K22: Include summary of key processes and procedures such as (but not limited to); waste reception, control rooms, grate, bed and bolier, energy & heat generation, cooling systems, residue management, emission controls, health and safety systems, maintenance

Sheet Operational Data
A1: =+'Cover Page'!$B$29 -> Annual Performance Report 2022 | E1: =+'Cover Page'!$B$33 -> Baddesley EfW Facility
A3: Operational Data | K3: Notes:
A4: Plant Size | B4: 130000 | D4: tonnes pa | G4: 10 | H4: MWe | K4: * - RDF to include SRF
A5: No. of combustion lines | B5: 1 | D5: No. of Turbines: | F5: 1 | K5: ** - CHP plants only
K6: 2020 updates include; heat in MWh, water in Litres, NCV in MJ/kg
A7: Waste types received | B7: Unit | C7: Q1 | D7: Q2 | E7: Q3 | F7: Q4 | G7: Year Total | H7: %
A8: Household / Local Authority | B8: tonnes | F8: 0 | G8: =SUM(C8:F8) -> 0 | H8: =IF(G8>0,G8/$G$15,"-") -> - | K8: Availabiity Definition: 'the availability of a line is to be calculated by the number of hours the line reported Continuously Monitored emission levels to the Regulator through the calendar year divided by the total number of hours in that year. The overall plant availability is calculated as the Mean of all lines in the plant. For clarity this includes periods of Other Than Normal Operating Conditions (OTNOC) and abnormal operation.' Rationale: The primary function of an Energy from Waste facility is the disposal of waste. It follows therefore that the availability of a plant is determined by the period of time a facility spends undertaking this activity.
A9: Commercial & Industrial | F9: 0 | G9: =SUM(C9:F9) -> 0 | H9: -
A10: Hazardous | F10: 0 | G10: 0 | H10: -
A11: Clinical | F11: 0 | G11: 0 | H11: -
A12: Waste wood (biomass) | F12: 0 | G12: 0 | H12: -
A13: Refuse Derived Fuel * - H'hold/LA | F13: 0 | G13: =SUM(C13:F13) -> 0 | H13: -
A14: Refuse Derived Fuel * - C&I | C14: 19124.22 | D14: 18679.77 | E14: 22317.15 | F14: 13869.42 | G14: 73990.56 | H14: 1
A15: Total waste received | C15: =SUM(C8:C14) -> 19124.22 | D15: =SUM(D8:D14) -> 18679.77 | E15: =SUM(E8:E14) -> 22317.15 | F15: =SUM(F8:F14) -> 13869.42 | G15: =SUM(G8:G14) -> 73990.56 | H15: 1
A16: Rejected Waste | F16: 0 | G16: =SUM(C16:F16) -> 0 | H16: =IF(G16>0,G16/$G$15,"-") -> -
A17: Unprocessed waste transferred out | F17: 0 | G17: =SUM(C17:F17) -> 0 | H17: =IF(G17>0,G17/$G$15,"-") -> -
A18: Total waste combusted | C18: =C15-SUM(C16:C17) -> 19124.22 | D18: =D15-SUM(D16:D17) -> 18679.77 | E18: 22317.15 | F18: 13869.42 | G18: =SUM(C18:F18) -> 73990.56 | H18: =IF(G18>0,G18/$G$15,"-") -> 1
A20: Energy Useage / Export | B20: Unit | C20: Q1 | D20: Q2 | E20: Q3 | F20: Q4 | G20: Year Total | H20: KWh/te
A21: Power Generated | B21: MWh | C21: =16331609/1000 -> 16331.609 | D21: 14942 | E21: 19261 | F21: 11865 | G21: =SUM(C21:F21) -> 62399.609 | H21: =IF(G21>0,G21*1000/$G$18,"-") -> 843.345543
A22: Power Exported | C22: 14256.861 | D22: 13094.519 | E22: 16790.253 | F22: 10259.246 | G22: =SUM(C22:F22) -> 54400.879 | H22: =IF(G22>0,G22*1000/$G$18,"-") -> 735.2408064
A23: Power Used on site | C23: 2158 | D23: 1939 | E23: 2480 | F23: 1858 | G23: =SUM(C23:F23) -> 8435 | H23: =IF(G23>0,G23*1000/$G$18,"-") -> 114.0010293
A24: Power Imported | C24: 172.653 | D24: 190.242 | E24: 140.794 | F24: 317.047 | G24: 820.736 | H24: =IF(G24>0,G24*1000/$G$18,"-") -> 11.09244206
A25: Parasitic Load | B25: % | C25: =IF(C21>0,1-C22/(C21+C24),"-") -> 0.1361709478 | D25: =IF(D21>0,1-D22/(D21+D24),"-") -> 0.1346610106 | E25: =IF(E21>0,1-E22/(E21+E24),"-") -> 0.1346030681 | F25: =IF(F21>0,1-F22/(F21+F24),"-") -> 0.1578389084 | G25: =IF(G21>0,1-G22/(G21+G24),"-") -> 0.1395036044
A26: Thermal Energy Produced ** | B26: MWh | F26: 0 | G26: =SUM(C26:F26) -> 0 | H26: =IF(G26>0,G26*1000/$G$18,"-") -> -
A27: Thermal Energy Exported ** | F27: 0 | G27: 0 | H27: =IF(G27>0,G27*1000/$G$18,"-") -> -
A28: R1 value | G28: Design / Operational / n/a
A30: Waste Disposal & Recovery | B30: Unit | C30: Q1 | D30: Q2 | E30: Q3 | F30: Q4 | G30: Year Total | H30: % inputs
A31: APC Residues - produced | B31: tonnes | C31: 804 | D31: 787.4 | E31: 827.96 | F31: 570.44 | G31: =SUM(C31:F31) -> 2989.8 | H31: =IF(G31>0,G31/$G$18,"-") -> 0.04040785743
A32: IBA - produced | C32: 3367 | D32: 3982.34 | E32: 4534.26 | F32: 2692.82 | G32: 14576.42 | H32: =IF(G32>0,G32/$G$18,"-") -> 0.1970037799
A33: Skimmer - produced | C33: 77 | D33: 102.96 | E33: 130.34 | F33: 101.28 | G33: =SUM(C33:F33) -> 411.58 | H33: 0.005562601499
A34: Fly - produced | C34: 347 | D34: 330.2 | E34: 426.4 | F34: 315.46 | G34: =SUM(C34:F34) -> 1419.06 | H34: 0.0191789331
C35: 0 | D35: 0 | E35: 0 | F35: 0 | G35: 0 | H35: -
C36: 0 | D36: 0 | E36: 0 | F36: 0 | G36: 0 | H36: -
A38: Raw Material Usage | B38: Unit | C38: Q1 | D38: Q2 | E38: Q3 | F38: Q4 | G38: Year Total | H38: kg or Ltr /te
A39: Mains Water | B39: m3 | C39: 23187 | D39: 37892 | E39: 57735 | F39: 19073 | G39: =SUM(C39:F39) -> 137887 | H39: =IF(G39>0,G39/$G$18,"-") -> 1.86357557
A40: Other Water | B40: m3 | G40: 0 | H40: =IF(G40>0,G40/$G$18,"-") -> -
A41: Ammonia | B41: Tonnes | C41: 51 | D41: 77 | E41: 26 | F41: 51 | G41: 205 | H41: =IF(G41>0,G41/$G$18,"-")*1000 -> 2.770623712
A42: Urea | B42: kgs | G42: =SUM(C42:F42) -> 0 | H42: -
A43: Activated Carbon | B43: kgs | C43: 10966 | D43: 10336 | E43: 12330 | F43: 8985 | G43: 42617 | H43: 0.5759788816
A44: Lime / hydrated lime | B44: kgs | C44: 358000 | D44: 365000 | E44: 400000 | F44: 285000 | G44: 1408000 | H44: 19.02945457
A45: Fuel oil | B45: ltrs | C45: 172766 | D45: 215778 | E45: 157539 | F45: 232127 | G45: 778210 | H45: 10.51769307
A46: Gas | B46: cf | C46: 0 | D46: 0 | E46: 0 | F46: 0 | G46: 0
A47: Other | C47: 0 | D47: 0 | E47: 0 | F47: 0 | G47: 0
A49: Summary | B49: Line/Unit | C49: Q1 | D49: Q2 | E49: Q3 | F49: Q4 | G49: Year Total | J49: Hrs in year
A50: Availability of waste combustion by line, hrs | B50: =+B5 -> 1 | C50: 1600.25 | D50: 1435.15 | E50: 1852.96 | F50: 1224.55 | G50: =SUM(C50:F50) -> 6112.91 | H50: =G50/J50 -> 0.6978207763 | J50: 8760
B51: 2 | F51: 0 | G51: 0 | H51: x %
B52: 3 | F52: 0 | G52: 0 | H52: x %
B53: 4 | F53: 0 | G53: 0 | H53: x %
B54: 5 | F54: 0 | G54: =SUM(C54:F54) -> 0 | H54: x %
A55: Overall Availability, mean avg. of all lines, hrs | G55: 0 | H55: x %
A56: Hours of turbine operations, hrs | B56: 1 | C56: 1645 | D56: 1602 | E56: 1914 | F56: 1321 | G56: 6482 | H56: =G56/J50 -> 0.7399543379
A57: Hours of turbine operations, hrs | B57: 2 | F57: 0 | G57: 0 | H57: x %
A58: Hours of heat / steam export | F58: 0 | G58: 0 | H58: =IF(B58>0,G57/J50,"n/a") -> n/a
A59: Net Calorific Value of waste | B59: MJ/kg | H59: -
A60: Abnormal Events | B60: qty. | C60: 7 | D60: 0 | E60: 1 | F60: 2 | G60: 10 | H60: =IF(G60>0,"yes","no") -> yes
A61: Abnormal operation | B61: hours | C61: 6.5 | D61: 0 | E61: 0.3 | F61: 2.1 | G61: 8.9 | H61: =+(G61)/J50 -> 0.001015981735
A62: Permit Breaches | B62: qty. | C62: 1 | D62: 5 | E62: 2 | F62: 5 | G62: 13 | H62: =IF(G62>0,"yes","no") -> yes

Sheet Operational Summary
A1: =+'Cover Page'!$B$29 -> Annual Performance Report 2022 | E1: =+'Cover Page'!$B$33 -> Baddesley EfW Facility
A3: Summary of Plant Operations and Maintenance during the reporting year | K3: Notes:
A5: Plant is in first full year of operation with reporting period from 01/01/2022 to 31/12/2022. Annual maintenance and inspection outage from 11th November - 26th November. General maintenance carried out as required including incline feeding conveyor replacement and furnace grate repairs. | K5: Include summary of key operational and/or mainteanance activity undertaken in the year, such as any major component upgrades and/or replacements
A29: Summary of Residue Handling for the reporting year
A31: EWC 19 01 15* - Boiler dust containing hazardous substances (Boiler/Econ Ash)– transported in sealed Ro-Ro skips to Augean Plc at Kings Cliffe facility near Peterborough. EWC 19 01 07 * - Solid wastes from gas treatment (APCr) - transported in sealed powder tankers to Augean Plc at Kings Cliffe facility near Peterborough. EWC 19 01 12 - Bottom ash and slag (IBA) – transported in opened sheeted high-sided trailers to Johnson Aggregates at Nottingham. The same vehicles that deliver RDF are utilised for the removal of the IBA residues to save on haulier costs and carbon footprint. EWC 19 01 13* - Fly ash containing hazardous substances (Skimmer Residue) - transported in sealed powder tankers to Augean Plc at Kings Cliffe facility near Peterborough. | K31: Include in here a summary of residue handling regimes and destinations

Sheet Perf. Form 1
A1: 2022 | B1: Annual Reporting Performance Form 1
A3: =+'Cover Page'!B31 -> Permit EPR/XP3730QZ | F3: Operator: | G3: Equitix EEEF WTE Baddesley Limited
A4: Facility: | B4: =+'Cover Page'!B33:I33 -> Baddesley EfW Facility | F4: Form: | G4: Performance 1
A6: Reporting Period from: | D6: 2022-01-01 | F6: to: | G6: 2022-12-31
A8: =+A1 -> 2022 | B8: Annual Reporting of Waste Disposal and Recovery
A9: Waste Description | C9: Disposal Route(s) | E9: Disposal Tonnes | G9: Recovery Tonnes | I9: Tonnes / tonne of waste incinerated
A10: 1) Hazardous Wastes
A11: APC Residues | C11: Treatment and disposal into landfill | E11: ='Operational Data'!G31 -> 2989.8 | I11: =IF((E11+G11)>0,(E11+G11)/'Operational Data'!$G$18, "-") -> 0.04040785743
A12: Fly | C12: Treatment and disposal into landfill | E12: ='Operational Data'!G34 -> 1419.06 | I12: =IF((E12+G12)>0,(E12+G12)/'Operational Data'!$G$18, "-") -> 0.0191789331
A13: Skimmer | C13: Treatment and disposal into landfill | E13: ='Operational Data'!G33 -> 411.58 | I13: =IF((E13+G13)>0,(E13+G13)/'Operational Data'!$G$18, "-") -> 0.005562601499
I14: =IF((E14+G14)>0,(E14+G14)/'Operational Data'!$G$18, "-") -> -
A15: Total Hazardous Waste | E15: =SUM(E11:F14) -> 4820.44 | G15: =SUM(G11:H14) -> 0 | I15: =IF((E15+G15)>0,(E15+G15)/'Operational Data'!$G$18, "-") -> 0.06514939203
A17: 2) Non-Hazardous Wastes
A18: IBA | C18: Sent for recovery for secondary aggregate | G18: ='Operational Data'!G32 -> 14576.42 | I18: =IF((E18+G18)>0,(E18+G18)/'Operational Data'!$G$18, "-") -> 0.1970037799
A19: Total Non-Hazardous Waste | E19: =SUM(E18:F18) -> 0 | G19: =SUM(G18:H18) -> 14576.42 | I19: =IF((E19+G19)>0,(E19+G19)/'Operational Data'!$G$18, "-") -> 0.1970037799
A20: TOTAL WASTE | E20: =+E19+E15 -> 4820.44 | G20: =+G19+G15 -> 14576.42 | I20: =IF((E20+G20)>0,(E20+G20)/'Operational Data'!$G$18, "-") -> 0.262153172
A22: Operator’s comments :
A27: =+A1 -> 2022 | B27: Annual Reporting of Water and Other Raw Material Usage
A28: Raw Material | E28: Usage | G28: Unit | H28: Specific Useage | J28: Unit
A29: Mains Water | E29: ='Operational Data'!G39 -> 137887 | G29: m3 | H29: =IF(E29>0,E29/'Operational Data'!$G$18,"-") -> 1.86357557 | J29: m3/te
A30: Total Water | E30: =E29 -> 137887 | G30: m3 | H30: =IF(E30>0,E30/'Operational Data'!$G$18,"-") -> 1.86357557 | J30: m3/te
A31: Ammonia | E31: ='Operational Data'!G41/1000 -> 0.205 | G31: m3 | H31: =IF(E31>0,E31*1000/'Operational Data'!$G$18,"-") -> 0.002770623712 | J31: ltr/te
A32: Activated Carbon | E32: ='Operational Data'!G43/1000 -> 42.617 | G32: Tonnes | H32: =IF(E32>0,E32*1000/'Operational Data'!$G$18,"-") -> 0.5759788816 | J32: kg/te
A33: Lime | E33: ='Operational Data'!F44/1000 -> 285 | G33: Tonnes | H33: =IF(E33>0,E33*1000/'Operational Data'!$G$18,"-") -> 3.851842722 | J33: kg/te
A35: Operator’s comments :
A39: =+A27 -> 2022 | B39: Annual Reporting of other performance indicators
A40: Parameter | C40: Results by Line
C41: A1 | D41: A2 | E41: A3 | F41: A4 | G41: A5 | I41: Turbine 1 | J41: Turbine 2
A42: Operating hours for the year, hours | C42: ='Operational Data'!G50 -> 6112.91 | I42: ='Operational Data'!G56 -> 6482
A43: Number of periods of abnormal operation, qty. | C43: ='Operational Data'!G60 -> 10 | I43: =C43 -> 10
A44: Cumulative hours of abnormal operation for this year, hours | C44: ='Operational Data'!G61 -> 8.9 | I44: 8.9
A46: Operator’s comments :
A50: Signed: | E50: T. Stocker | G50: Date: | H50: 2023-01-27
E51: Baddesley Operations Manager

Sheet Waste R1
A1: 2022 | B1: Annual Reporting of Waste disposal and Recovery
A3: =+'Cover Page'!B31 -> Permit EPR/XP3730QZ | F3: Operator: | G3: Equitix EEEF WTE Baddesley Limited
A5: Facility: | B5: =+'Cover Page'!B33:I33 -> Baddesley EfW Facility | F5: Form: | G5: R1 (Waste)
A7: Reporting Period from: | D7: 2022-01-01 | F7: to: | G7: 2022-12-31
A9: Waste description | D9: Disposal Route | F9: Tonnes | H9: Units | I9: Tonnes/tonne waste incinerated
A10: 1) Hazardous Waste
A11: APC Residues | D11: Treatment and disposal into landfill | F11: ='Operational Data'!G31 -> 2989.8 | H11: Tonnes | I11: =F11/'Operational Data'!$G$18 -> 0.04040785743
A12: Boiler and Economiser (fly) ash | D12: Treatment and disposal into landfill | F12: ='Operational Data'!G34 -> 1419.06 | H12: Tonnes | I12: =F12/'Operational Data'!$G$18 -> 0.0191789331
A13: Skimmer ash | D13: Treatment and disposal into landfill | F13: ='Operational Data'!G33 -> 411.58 | H13: Tonnes | I13: =F13/'Operational Data'!$G$18 -> 0.005562601499
A14: Total Hazardous waste | F14: =SUM(F11:G13) -> 4820.44 | H14: Tonnes | I14: =F14/'Operational Data'!$G$18 -> 0.06514939203
A15: IBA (non-hazardous) | D15: Sent for recovery for secondary aggregate | F15: ='Operational Data'!G32 -> 14576.42 | H15: Tonnes | I15: =F15/'Operational Data'!$G$18 -> 0.1970037799
A16: Total non-hazardous waste | F16: =F15 -> 14576.42 | H16: Tonnes | I16: =F16/'Operational Data'!$G$18 -> 0.1970037799
A18: Operator’s comments :
A29: Signed: | E29: T Stocker | G29: Date: | H29: 2023-01-27
E30: Baddesley Operations Manager.

Sheet Raw Materials WURM1
A1: 2022 | B1: Annual Reporting of Water and Other Raw Material Usage
A3: =+'Cover Page'!B31 -> Permit EPR/XP3730QZ | F3: Operator: | G3: Equitix EEEF WTE Baddesley Limited
A5: Facility: | B5: =+'Cover Page'!B33:I33 -> Baddesley EfW Facility | F5: Form: | G5: WURM 1
A7: Reporting Period from: | D7: 2022-01-01 | F7: to: | G7: 2022-12-31
A9: Raw Material | D9: Usage | F9: Units | H9: Specific Usage | I9: Units
A10: Total RDF Incinerated | D10: ='Operational Data'!G18 -> 73990.56 | F10: Tonnes | H10: NA | I10: m3/tonne waste input
A11: Mains Water | D11: ='Operational Data'!G39 -> 137887 | F11: m3 | H11: =D11/$D$10 -> 1.86357557 | I11: m3/tonne waste input
A12: Total Water Usage | D12: =D11 -> 137887 | F12: m3 | H12: =D12/$D$10 -> 1.86357557 | I12: m3/tonne waste input
A13: Ammonia | D13: ='Operational Data'!G41 -> 205 | F13: Tonnes | H13: 0.002770623712 | I13: tonne/tonne waste input
A14: Activated Carbon | D14: ='Operational Data'!G43 -> 42617 | F14: Kg | H14: 0.5759788816 | I14: kg/tonne waste input
A15: Hydrated Lime | D15: ='Operational Data'!G44 -> 1408000 | F15: Kg | H15: 19.02945457 | I15: kg/tonne waste input
A17: Operator’s comments :
A28: Signed: | E28: T Stocker | G28: Date: | H28: 2023-01-27
E29: Baddesley Operations Manager.

Sheet Energy Form 1
A1: =+'Cover Page'!C39 -> 2022 | B1: Annual Reporting of Energy Usage/Export
A3: =+'Cover Page'!B31 -> Permit EPR/XP3730QZ | F3: Operator: | G3: Equitix EEEF WTE Baddesley Limited
A5: Facility: | B5: =+'Cover Page'!B33:I33 -> Baddesley EfW Facility | F5: Form: | G5: Energy 1
A7: Reporting Period from: | D7: 2022-01-01 | F7: to: | G7: 2022-12-31
A9: Energy Source | D9: Energy Usage | F9: Unit | G9: Primary Energy note 1 (MWh)
A10: Electricity Produced | D10: ='Operational Data'!G21 -> 62399.609 | F10: MWh
A11: Electricity Imported | D11: ='Operational Data'!G24 -> 820.736 | F11: MWh | G11: =D11*2.1 -> 1723.5456
A12: Electricity Exported | D12: ='Operational Data'!G22 -> 54400.879 | F12: MWh
A13: Gas Oil | D13: ='Operational Data'!G45/1000 -> 778.21 | F13: m3
A14: Steam/hot water exported | D14: =+'Operational Data'!G27 -> 0 | F14: GWh | G14: =IF(D14>0,D14*1000/'Operational Data'!$G$18,"-") -> -
A15: Note 1: Conversion factor for imported electricty to primary energy =2.1
A16: Operator’s comments :
A27: Signed: | E27: T Stocker | G27: Date: | H27: 2023-01-27
E28: Baddesley Operations Manager.

Sheet Permit Compliance
A1: =+'Cover Page'!$B$29 -> Annual Performance Report 2022 | E1: =+'Cover Page'!$B$33 -> Baddesley EfW Facility
A3: Summary of Permit Compliance
A5: Compliance with permit limits for continuously monitored pollutants
A7: The plant met its emission limits as shown in the table below:
A8: Substance | C8: Percentage time compliant during operation | L8: Notes:
C9: Half-hourly limit | F9: Daily limit | L9: Report to 2 decimal places, i.e. xx.xx%. Please provide a brief summary of each notification or non-compliance in the table (rather than just referring to notifications that were sent to the Regulator).
A10: Particulates | C10: 100 | F10: 100
A11: Oxides of nitrogen | C11: 98.29 | F11: 100
A12: Sulphur dioxide | C12: 99 | F12: 100
A13: Carbon monoxide | C13: 97.83 | F13: 99.7
A14: Total organic carbon | C14: 98.9 | F14: 100
A15: Hydrogen chloride | C15: 100 | F15: 100
A16: Hydrogen fluoride | C16: n/a | F16: n/a
A17: Ammonia | C17: n/a | F17: 100
A19: Summary of any notifications or non-compliances under the permit
A20: Date | B20: Summary of notification or non-compliance [including Line/Reference] | E20: Reason | H20: Measures taken to prevent reoccurrence
A21: 2022-01-08 | B21: NOx limit exceedence | E21: Ammonia crystalisation caused SCR failure and NOx breach. | H21: Regular cleaning of injector nozzles
A22: 2022-04-18 | B22: CO limit exceedence | E22: RDF Fuel blockage and burner failure. Unable to maintain furnace temeperature. | H22: Regular chute checks and burner maintenance
A23: 2022-05-03 | B23: CO limit exceedence | E23: Unable to feed RDF due to feed conveyor issue creating unstable conditions. | H23: Investigation into Feeder conveyor failures. Planned maintenance
A24: 2022-05-26 | B24: CO limit exceedence | E24: Boiler on shutdown, not feeding at the time. | H24: Review and update CEMS recording criteria when in shutdown mode.
A25: 2022-06-03 | B25: CO and TOC half hour limit exceedence. | E25: CEMS still reporting after shutdown criteria met. No RDF feeding at the time. | H25: Review and update CEMS recording criteria when in shutdown mode.
A26: 2022-06-19 | B26: CO and NH3 daily limit exceedences | E26: Excess Ammonia in system on start up creating Ammonia slip. CO exceedence when feed stopped due to Ammonia situation | H26: Further investigation required due to Ammonia saturation on start up.
A27: 2022-07-11 | B27: CO half hour limit exceedence | E27: Boiler in shutdown condition, no fuel feeding. CEMS remained in reporting condition. | H27: Investigation into shutdown criteria for the CEMS to come off reporting.
A28: 2022-09-24 | B28: CO half hour limit exceedence | E28: CEMS still reporting after shutdown criteria met. No RDF feeding at the time. | H28: Investigation into shutdown criteria for the CEMS to come off reporting.
A29: 2022-10-29 | B29: CO and TOC daily limit exceedence | E29: CEMS still reporting after shutdown criteria met. No RDF feeding at the time. | H29: Further Investigation into shutdown criteria for the CEMS to come off reporting.
A30: 2022-10-30 | B30: CO and TOC daily limit exceedence | E30: CEMS still reporting after shutdown criteria met. No RDF feeding at the time. | H30: Further Investigation into shutdown criteria for the CEMS to come off reporting.
A31: 2022-11-02 | B31: Daily and half hour SO2 limit exceedence. | E31: High moisture fuel used on start up. Difficulty maintaining furnace temperature at end of start up phase. | H31: Ensure fuel quality is optimised for starting a cold boiler.
A32: 2022-11-06 | B32: Daily CO and TOC limit exceedence. | E32: CEMS still reporting after shutdown criteria met. No RDF feeding at the time. | H32: Further Investigation into shutdown criteria for the CEMS to come off reporting.
A33: 2022-12-13 | B33: Half hour Nox limit exceedence | E33: Low ambient temperature had frozen and compromised air supply to SCR system | H33: Defrosted line re-established air supply and normal SCR system. Lagged and trace heating applied.
A35: Summary of any complaints received and actions to taken to resolve them.
A36: Date | B36: Summary of complaint [including Line/Reference] | E36: Reason * | H36: Measures taken to prevent reoccurrence
E42: * including whether substantiated by the operator or the EA

Sheet Improvements
A1: =+'Cover Page'!$B$29 -> Annual Performance Report 2022 | E1: =+'Cover Page'!$B$33 -> Baddesley EfW Facility
A3: Summary of Plant Improvements
A5: Summary of any efficiency improvements that have been completed within the year.
A6: N/A
A16: Summary of any permit improvement conditions that have been completed within the year and the resulting environmental benefits.
A17: Progress made with IC5, due for submission 2023.
A27: Summary of any changes to the plant or operating techniques which required a variation to the permit and a summary of the resulting environmental impact.
A28: N/A
A38: Summary of any other improvements made to the plant or planned to be made and a summary of the resulting environmental benefits.
A39: N/A

Sheet Public Liasion
A1: =+'Cover Page'!$B$29 -> Annual Performance Report 2022 | E1: =+'Cover Page'!$B$33 -> Baddesley EfW Facility
A3: Details of Public & Stakeholder Liasion
A5: Summary of events held during the reporting year.
A6: Date | C6: Description
A16: List of events planned for next year
A17: Date | C17: Description
A29: If you wish to be involved in the public liasion programme, please contact _________________

Sheet Residue Quality
A1: =+'Cover Page'!$B$29 -> Annual Performance Report 2022 | E1: =+'Cover Page'!$B$33 -> Baddesley EfW Facility
A3: Residue Quality Monitoring Requirements
A5: Summary of monitoring undertaken and compliance
A6: Permit compliance monitoring of IBA, Boiler Ash (BA), Skimmer residue (FGTS) and APCr is conducted monthly in the first year of operation, then quarterly from October 2022.
A8: Hazardous property assessment of IBA conducted twice a month. It is currently subject to ESA Protocol.
A13: Commentary on any specific events
A14: Date & Event | C14: Description
A15: 2022-10-01 | C15: Reduced compliance monitoring of IBA, Boiler Ash (BA), Skimmer residue (FGTS) and APCr to quarterly.
A17: 11/11/2022-26/11/2022 | C17: Planned outage waste volumes reduced. No ash discharged from site therefore 2nd monthly ESA compliance monitoring not carried out. Ref email WRC 23/11/2022.
A31: Residue Quality Monitoring Results
A32: Parameter (unit) | C32: Limit | D32: Normal Operation
D33: Bottom ash | F33: APC Residues
A34: Loss on Ignition (average %) | C34: <5% | D34: 2.0 max
A35: Total Organic Carbon (average %) | C35: <3% | D35: 0.31 max
A36: No. of Assessments Undertaken | C36: --- | D36: 22 | F36: 10
A37: No. of Hazardous Results | C37: --- | D37: 0
A39: Comments :
A40: No sample taken in November as reduced days of feeding with maintenance shutdown. Residue sample frequency now quarterly from October 2022.

Sheet Water
A1: =+'Cover Page'!$B$29 -> Annual Performance Report 2022 | E1: =+'Cover Page'!$B$33 -> Baddesley EfW Facility
A3: Emissions to Water
A5: Summary of monitoring undertaken and compliance
A6: Trade Effluent is monitored by Severn Trent Water. There are no specific monitoring requirements in the Permit.
A8: Severn Trent Water monitoring reports are available to review upon request.
A13: Commentary on any specific events
A14: Date & Event | C14: Description
A26: Emissions to Water / Sewer
A27: Parameter | D27: Monitoring Frequency | G27: Limit | H27: Target | I27: Max. | J27: Average
A28: pH | G28: 6-10 | H28: n/a
A29: Suspended solids | G29: 600 mg/ltr | H29: n/a
A30: Chemical Oxygen Demand | G30: 600 mg/ltr | H30: n/a
A31: Sulphate | G31: 1000 mg/ltr | H31: n/a
A32: Chloride | G32: 2000 mg/ltr | H32: n/a
A33: Total Copper | G33: 2.5 mg/ltr | H33: n/a
A34: Total Phosphorus | G34: 25 mg/ltr | H34: n/a

Sheet Air (periodic)
A1: =+'Cover Page'!$B$29 -> Annual Performance Report 2022 | E1: =+'Cover Page'!$B$33 -> Baddesley EfW Facility
A3: Emissions to Air (periodically monitored)
A5: Summary of monitoring undertaken, standards used and compliance | M5: Notes:
A6: Quarterly stack testing in first year, then Bi-annual as per the Permit. The following test methods were used PD CEN TS 17340, BS EN 14385, BS EN 13211, BS EN 1948, BS ISO 11338 | M6: Template may require adjustment for any bespoke monitoring requirements of permit.
A9: Results of emissions to air that are periodically monitored
A10: Substance | C10: Ref. Period | D10: Emission Limit Value | F10: Average | M10: User to add additional tables as necessary, depending on whether quarterly or bi-annual reporting is required for the compliance year
F11: A1 | G11: A2 | H11: A3 | I11: A4 | J11: A5 | U11: Q1 | V11: Q2 | W11: Q3 | X11: Q4
A12: Hydrogen fluoride | C12: 1 hr | D12: 2 mg/m3 | F12: =AVERAGE(U12:X12) -> 0.05875 | R12: Hydrogen fluoride | T12: 1 hr | U12: 0.026 | V12: 0.038 | W12: 0.031 | X12: 0.14
A13: Cd and Th and their compounds | C13: 6-8hrs | D13: 0.05 mg/m3 | F13: =AVERAGE(U13:X13) -> 0.002075 | R13: Cd and Th and their compounds | T13: 6-8hrs | U13: 0.002 | V13: 0.0021 | W13: 0.002 | X13: 0.0022
A14: Hg and its compounds | C14: 6-8hrs | D14: 0.05 mg/m3 | F14: 0.0007625 | R14: Hg and its compounds | T14: 6-8hrs | U14: 0.00079 | V14: 0.0012 | W14: 0.00055 | X14: 0.00051
A15: Sb, As, Pb, Cr, Co, Cu, Mn, Ni, V and their compounds | C15: 6-8hrs | D15: 0.5 mg/m3 | F15: 0.05825 | R15: Sb, As, Pb, Cr, Co, Cu, Mn, Ni, V and their compounds | T15: 6-8hrs | U15: 0.022 | V15: 0.032 | W15: 0.1 | X15: 0.079
A16: Dioxins & Furans (I-TEQ) | C16: 6-8hrs | D16: 0.1 ng/m3 | F16: 0.0020275 | R16: Dioxins & Furans (I-TEQ) | T16: 6-8hrs | U16: 0.0031 | V16: 0.00061 | W16: 0.002 | X16: 0.0024
A17: PCBs (WHO-TEQ Humans / Mammals) | C17: 6-8hrs | D17: None set ng/m3 | F17: 0.000523 | R17: PCBs (WHO-TEQ Humans / Mammals) | T17: 6-8hrs | U17: 0.0015 | V17: 5.2e-05 | W17: 0.00022 | X17: 0.00032
A18: PCBs (WHO-TEQ Fish) | C18: 6-8hrs | D18: None set ng/m3 | F18: 2.5575e-05 | R18: PCBs (WHO-TEQ Fish) | T18: 6-8hrs | U18: 7.1e-05 | V18: 3.3e-06 | W18: 1.1e-05 | X18: 1.7e-05
A19: PCBs (WHO-TEQ Birds) | C19: 6-8hrs | D19: None set ng/m3 | F19: 0.0012025 | R19: PCBs (WHO-TEQ Birds) | T19: 6-8hrs | U19: 0.0028 | V19: 0.00047 | W19: 0.00055 | X19: 0.00099
A20: Dioxins & Furans (WHO-TEQ Humans / Mammals) | C20: 6-8hrs | D20: None set ng/m3 | F20: 0.0018875 | R20: Dioxins & Furans (WHO-TEQ Humans / Mammals) | T20: 6-8hrs | U20: 0.0027 | V20: 0.00065 | W20: 0.002 | X20: 0.0022
A21: Dioxins & Furans (WHO-TEQ Fish) | C21: 6-8hrs | D21: None set ng/m3 | F21: 0.002065 | R21: Dioxins & Furans (WHO-TEQ Fish) | T21: 6-8hrs | U21: 0.003 | V21: 0.00056 | W21: 0.0023 | X21: 0.0024
A22: Dioxins & Furans (WHO-TEQ Birds) | C22: 6-8hrs | D22: None set ng/m3 | F22: 0.004475 | R22: Dioxins & Furans (WHO-TEQ Birds) | T22: 6-8hrs | U22: 0.0083 | V22: 0.0009 | W22: 0.0044 | X22: 0.0043
A23: Anthanthrene | C23: 6-8hrs | D23: None set µg/m3 | F23: 0.003125 | R23: Anthanthrene | T23: 6-8hrs | U23: 0.0017 | V23: 0.0076 | W23: 0.0016 | X23: 0.0016
A24: Benzo(a)anthracene | C24: 6-8hrs | D24: None set µg/m3 | F24: 0.015975 | R24: Benzo(a)anthracene | T24: 6-8hrs | U24: 0.0027 | V24: 0.058 | W24: 0.0016 | X24: 0.0016
A25: Benzo(b)fluoranthene | C25: 6-8hrs | D25: None set µg/m3 | F25: 0.03375 | R25: Benzo(b)fluoranthene | T25: 6-8hrs | U25: 0.0018 | V25: 0.13 | W25: 0.0016 | X25: 0.0016
A26: Benzo(k)fluoranthene | C26: 6-8hrs | D26: None set µg/m3 | F26: 0.015975 | R26: Benzo(k)fluoranthene | T26: 6-8hrs | U26: 0.0017 | V26: 0.059 | W26: 0.0016 | X26: 0.0016
A27: Benzo(b)naptho(2,1-d) thiophene | C27: 6-8hrs | D27: None set µg/m3 | F27: 0.001625 | R27: Benzo(b)naptho(2,1-d) thiophene | T27: 6-8hrs | U27: 0.0017 | V27: 0.0016 | W27: 0.0016 | X27: 0.0016
A28: Benzo(c)phenanthrene | C28: 6-8hrs | D28: None set µg/m3 | F28: 0.0024 | R28: Benzo(c)phenanthrene | T28: 6-8hrs | U28: 0.0017 | V28: 0.0047 | W28: 0.0016 | X28: 0.0016
A29: Benzo(ghi)perylene | C29: 6-8hrs | D29: None set µg/m3 | F29: 0.03005 | R29: Benzo(ghi)perylene | T29: 6-8hrs | U29: 0.0049 | V29: 0.11 | W29: 0.0037 | X29: 0.0016
A30: Benzo(a)pyrene | C30: 6-8hrs | D30: None set µg/m3 | F30: 0.04135 | R30: Benzo(a)pyrene | T30: 6-8hrs | U30: 0.0022 | V30: 0.16 | W30: 0.0016 | X30: 0.0016
A31: Cholanthrene | C31: 6-8hrs | D31: None set µg/m3 | F31: 0.001625 | R31: Cholanthrene | T31: 6-8hrs | U31: 0.0017 | V31: 0.0016 | W31: 0.0016 | X31: 0.0016
A32: Chrysene | C32: 6-8hrs | D32: None set µg/m3 | F32: 0.02065 | R32: Chrysene | T32: 6-8hrs | U32: 0.0034 | V32: 0.076 | W32: 0.0016 | X32: 0.0016
A33: Cyclopenta(cd)pyrene | C33: 6-8hrs | D33: None set µg/m3 | F33: 0.043725 | R33: Cyclopenta(cd)pyrene | T33: 6-8hrs | U33: 0.0017 | V33: 0.17 | W33: 0.0016 | X33: 0.0016
A34: Dibenzo(ah)anthracene | C34: 6-8hrs | D34: None set µg/m3 | F34: 0.001625 | R34: Dibenzo(ah)anthracene | T34: 6-8hrs | U34: 0.0017 | V34: 0.0016 | W34: 0.0016 | X34: 0.0016
A35: Dibenzo(ai)pyrene | C35: 6-8hrs | D35: None set µg/m3 | F35: 0.001625 | R35: Dibenzo(ai)pyrene | T35: 6-8hrs | U35: 0.0017 | V35: 0.0016 | W35: 0.0016 | X35: 0.0016
A36: Fluoranthene | C36: 6-8hrs | D36: None set µg/m3 | F36: 0.08375 | R36: Fluoranthene | T36: 6-8hrs | U36: 0.17 | V36: 0.12 | W36: 0.035 | X36: 0.01
A37: Indeno(123-cd) pyrene | C37: 6-8hrs | D37: None set µg/m3 | F37: 0.014725 | R37: Indeno(123-cd) pyrene | T37: 6-8hrs | U37: 0.0017 | V37: 0.054 | W37: 0.0016 | X37: 0.0016
A38: Naphthalene | C38: 6-8hrs | D38: None set µg/m3 | F38: 0.243 | R38: Naphthalene | T38: 6-8hrs | U38: 0.62 | V38: 0.11 | W38: 0.21 | X38: 0.032
A39: Comments :
A40: Where < values have been reported in monitoring results, upper value has been presented to allow averaging of results. Where multiple results recorded during monitoring, highest value has been entered.

Sheet Air (CEMS)
A1: =+'Cover Page'!$B$29 -> Annual Performance Report 2022 | I1: =+'Cover Page'!$B$33 -> Baddesley EfW Facility
A3: Emissions to Air (continously monitored)
P4: Notes:
A5: Summary of monitoring undertaken, standards used and compliance | P5: Template may require adjustment for any bespoke monitoring requirements of permit
A6: Stack emmisions are continuously measured with 1no duty and 1no hot standby analysers MCS100FT. Particulates are continuously measured with 1no duty and 1no standby instruments Dusthunter SP100. All instruments are Mcerts certified. | P6: Report to 2 decimal places, i.e. xx.xx%
A11: Results of emissions to air that are continuously monitored (maximum and average values for each line)
A12: Substance | B12: Reference Period | C12: Emission Limit Value | D12: A1 | F12: A2 | H12: A3 | J12: A4 | L12: A5
D13: Max. | E13: Avg. | F13: Max. | G13: Avg. | H13: Max. | I13: Avg. | J13: Max. | K13: Avg. | L13: Max. | M13: Avg.
A14: Oxides of nitrogen | B14: Daily mean | C14: 200 mg/m3 | D14: =NOx!O19 -> 90 | E14: =NOx!N19 -> 82.88333333
B15: ½ hourly mean | C15: 400 mg/m3 | D15: =NOx!M19 -> 284.6 | E15: =NOx!L19 -> 82.86666667
A16: Particulates | B16: Daily mean | C16: 10 mg/m3 | D16: =Particulates!O19 -> 7.9 | E16: =Particulates!N19 -> 0.1416666667
B17: ½ hourly mean | C17: 30 mg/m3 | D17: =Particulates!M19 -> 12.4 | E17: =Particulates!L19 -> 0.2333333333
A18: Total Organic Carbon | B18: Daily mean | C18: 10 mg/m3 | D18: =TOC!O19 -> 4.3 | E18: =TOC!N19 -> 1.016666667
B19: ½ hourly mean | C19: 20 mg/m3 | D19: =TOC!M19 -> 136.7 | E19: =TOC!L19 -> 1.225
A20: Hydrogen chloride | B20: Daily mean | C20: 10 mg/m3 | D20: =HCl!O19 -> 5.6 | E20: =HCl!N19 -> 2.183333333
B21: ½ hourly mean | C21: 60 mg/m3 | D21: =HCl!M19 -> 12.3 | E21: =HCl!L19 -> 2.275
A22: Sulphur dioxide | B22: Daily mean | C22: 50 mg/m3 | D22: ='SO2'!O19 -> 15 | E22: ='SO2'!N19 -> 4.666666667
B23: ½ hourly mean | C23: 200 mg/m3 | D23: ='SO2'!M19 -> 247.5 | E23: ='SO2'!L19 -> 5.5
A24: Carbon monoxide | B24: Daily mean | C24: 50 mg/m3 | D24: ='CO 95% 10 min'!Q19 -> 122 | E24: ='CO 95% 10 min'!P19 -> 16.46666667
B25: ½ hourly mean * | C25: 100 mg/m3 * | D25: ='CO 0.5hourly'!M19 -> 3180.2 | E25: ='CO 0.5hourly'!L19 -> 8.541666667
B26: 95%ile 10-min avg * | C26: 150 mg/m3 * | D26: ='CO 95% 10 min'!M19 -> 25.9 | E26: ='CO 95% 10 min'!N19 -> 8.183333333
A27: Ammonia | B27: Daily mean | C27: No limit set | D27: ='NH3'!O19 -> 0.4 | E27: ='NH3'!N19 -> 0.21375
A28: * = delete or amend as appropriate
A29: Comments :

Sheet HCl
A1: =+'Cover Page'!$B$29 -> Annual Performance Report 2022 | E1: =+'Cover Page'!$B$33 -> Baddesley EfW Facility
A3: Monitoring of Hydrogen Chloride emissions | D3: Whole Installation | G3: See Notes in Cell Q3 | J3: =+A3 -> Monitoring of Hydrogen Chloride emissions | N3: Per Combustion Line | Q3: Notes:
Q4: User to add logic to complete Whole installation, Table A5:G18. From the data in Per Combustion Line, Table J6:O79, subject to No. of lines installed
A5: mg/Nm3 | B5: 1/2 Hourly Reference Periods | E5: Daily Reference Periods
A6: =+'Cover Page'!C39 -> 2022 | B6: 1/2 hourly HCl ELV | C6: Monthly 1/2 hourly mean | D6: Highest 1/2 hourly maximum | E6: Daily HCl ELV | F6: Monthly daily mean | G6: Highest daily maximum | J6: =+A6 -> 2022 | K6: mg/Nm3 | L6: Monthly 1/2 hourly mean | M6: Monthly 1/2 hourly maximum | N6: Monthly daily mean | O6: Monthly daily maximum
A7: Jan | B7: 60 | C7: =L7 -> 2.4 | D7: =M7 -> 8.1 | E7: 10 | F7: =N7 -> 2.3 | G7: =O7 -> 3 | J7: A1 | K7: Jan | L7: 2.4 | M7: 8.1 | N7: 2.3 | O7: 3
A8: Feb | B8: 60 | C8: 2.4 | D8: 7.3 | E8: 10 | F8: 2.5 | G8: 3.3 | K8: Feb | L8: 2.4 | M8: 7.3 | N8: 2.5 | O8: 3.3
A9: Mar | B9: 60 | C9: 2.3 | D9: 7.5 | E9: 10 | F9: 2.3 | G9: 3 | K9: Mar | L9: 2.3 | M9: 7.5 | N9: 2.3 | O9: 3 | Q9: Whole Installation table A5:G18:
A10: Apr | B10: 60 | C10: 2.5 | D10: 5.4 | E10: 10 | F10: 2.5 | G10: 3.5 | K10: Apr | L10: 2.5 | M10: 5.4 | N10: 2.5 | O10: 3.5 | Q10: Mean: for 1/2 hourly and daily periods calculate mean of values across all operational combustion lines for the month
A11: May | B11: 60 | C11: 2 | D11: 5 | E11: 10 | F11: 1.8 | G11: 2.5 | K11: May | L11: 2 | M11: 5 | N11: 1.8 | O11: 2.5
A12: Jun | B12: 60 | C12: 1.8 | D12: 6.7 | E12: 10 | F12: 1.8 | G12: 2.7 | K12: Jun | L12: 1.8 | M12: 6.7 | N12: 1.8 | O12: 2.7
A13: Jul | B13: 60 | C13: 3.3 | D13: 12.3 | E13: 10 | F13: 3.3 | G13: 5.6 | K13: Jul | L13: 3.3 | M13: 12.3 | N13: 3.3 | O13: 5.6 | Q13: Maximum: for 1/2 hourly and daily periods use the highest value across all operational combustion lines for the month
A14: Aug | B14: 60 | C14: 3.2 | D14: 8 | E14: 10 | F14: 3.1 | G14: 4.2 | K14: Aug | L14: 3.2 | M14: 8 | N14: 3.1 | O14: 4.2
A15: Sep | B15: 60 | C15: 2.6 | D15: 9.6 | E15: 10 | F15: 2.7 | G15: 5 | K15: Sep | L15: 2.6 | M15: 9.6 | N15: 2.7 | O15: 5
A16: Oct | B16: 60 | C16: =L16 -> 1.4 | D16: =M16 -> 10.6 | E16: 10 | F16: =N16 -> 1.2 | G16: =O16 -> 1.8 | K16: Oct | L16: 1.4 | M16: 10.6 | N16: 1.2 | O16: 1.8
A17: Nov | B17: 60 | C17: =L17 -> 1.2 | D17: =M17 -> 3.6 | E17: 10 | F17: =N17 -> 0.5 | G17: =O17 -> 1.2 | K17: Nov | L17: 1.2 | M17: 3.6 | N17: 0.5 | O17: 1.2
A18: Dec | B18: 60 | C18: 2.2 | D18: 5.4 | E18: 10 | F18: 2.2 | G18: 2.7 | K18: Dec | L18: 2.2 | M18: 5.4 | N18: 2.2 | O18: 2.7
K19: Annual | L19: =AVERAGE(L7:L18) -> 2.275 | M19: =MAX(M7:M18) -> 12.3 | N19: =AVERAGE(N7:N18) -> 2.183333333 | O19: =MAX(O7:O18) -> 5.6
J21: =+A6 -> 2022 | K21: mg/Nm3 | L21: Monthly 1/2 hourly mean | M21: Monthly 1/2 hourly maximum | N21: Monthly daily mean | O21: Monthly daily maximum
J22: A2 | K22: Jan
K23: Feb
K24: Mar
K25: Apr
K26: May
K27: Jun
K28: Jul
K29: Aug
K30: Sep
K31: Oct
K32: Nov
K33: Dec
K34: Annual | L34: =AVERAGE(L22:L33) ->  | M34: =MAX(M22:M33) -> 0 | N34: =AVERAGE(N22:N33) ->  | O34: =MAX(O22:O33) -> 0
J36: =+A6 -> 2022 | K36: mg/Nm3 | L36: Monthly 1/2 hourly mean | M36: Monthly 1/2 hourly maximum | N36: Monthly daily mean | O36: Monthly daily maximum
J37: A3 | K37: Jan
K38: Feb
K39: Mar
K40: Apr
K41: May
K42: Jun
K43: Jul
K44: Aug
K45: Sep
K46: Oct
K47: Nov
A48: Comments : | K48: Dec
K49: Annual | L49: =AVERAGE(L37:L48) ->  | M49: =MAX(M37:M48) -> 0 | N49: =AVERAGE(N37:N48) ->  | O49: =MAX(O37:O48) -> 0
J51: =+A6 -> 2022 | K51: mg/Nm3 | L51: Monthly 1/2 hourly mean | M51: Monthly 1/2 hourly maximum | N51: Monthly daily mean | O51: Monthly daily maximum
J52: A4 | K52: Jan
K53: Feb
K54: Mar
K55: Apr
K56: May
K57: Jun
K58: Jul
K59: Aug
K60: Sep
K61: Oct
K62: Nov
K63: Dec
K64: Annual | L64: =AVERAGE(L52:L63) ->  | M64: =MAX(M52:M63) -> 0 | N64: =AVERAGE(N52:N63) ->  | O64: =MAX(O52:O63) -> 0
J66: =+A6 -> 2022 | K66: mg/Nm3 | L66: Monthly 1/2 hourly mean | M66: Monthly 1/2 hourly maximum | N66: Monthly daily mean | O66: Monthly daily maximum
J67: A5 | K67: Jan
K68: Feb
K69: Mar
K70: Apr
K71: May
K72: Jun
K73: Jul
K74: Aug
K75: Sep
K76: Oct
K77: Nov
K78: Dec
K79: Annual | L79: =AVERAGE(L67:L78) ->  | M79: =MAX(M67:M78) -> 0 | N79: =AVERAGE(N67:N78) ->  | O79: =MAX(O67:O78) -> 0

Sheet SO2
A1: =+'Cover Page'!$B$29 -> Annual Performance Report 2022 | E1: =+'Cover Page'!$B$33 -> Baddesley EfW Facility
A3: Monitoring of Sulphur dioxide emissions | D3: Whole Installation | G3: See Notes in Cell Q3 | J3: =+A3 -> Monitoring of Sulphur dioxide emissions | N3: Per Combustion Line | Q3: Notes:
Q4: User to add logic to complete Whole installation, Table A5:G18. From the data in Per Combustion Line, Table J6:O79, subject to No. of lines installed
A5: mg/Nm3 | B5: 1/2 Hourly Reference Periods | E5: Daily Reference Periods
A6: =+'Cover Page'!C39 -> 2022 | B6: 1/2 hourly SO2 ELV | C6: Monthly 1/2 hourly mean | D6: Highest 1/2 hourly maximum | E6: Daily SO2 ELV | F6: Monthly daily mean | G6: Highest daily maximum | J6: =+A6 -> 2022 | K6: mg/Nm3 | L6: Monthly 1/2 hourly mean | M6: Monthly 1/2 hourly maximum | N6: Monthly daily mean | O6: Monthly daily maximum
A7: Jan | B7: 200 | C7: =L7 -> 3.5 | D7: =M7 -> 35.8 | E7: 50 | F7: =N7 -> 3.4 | G7: =O7 -> 4.1 | J7: A1 | K7: Jan | L7: 3.5 | M7: 35.8 | N7: 3.4 | O7: 4.1
A8: Feb | B8: 200 | C8: 3.6 | D8: 12.1 | E8: 50 | F8: =N8 -> 3.6 | G8: 4.2 | K8: Feb | L8: 3.6 | M8: 12.1 | N8: 3.6 | O8: 4.2
A9: Mar | B9: 200 | C9: 3.3 | D9: 20.3 | E9: 50 | F9: 3.2 | G9: 4 | K9: Mar | L9: 3.3 | M9: 20.3 | N9: 3.2 | O9: 4 | Q9: Whole Installation table A5:G18:
A10: Apr | B10: 200 | C10: 3.3 | D10: 12 | E10: 50 | F10: 3.2 | G10: 3.6 | K10: Apr | L10: 3.3 | M10: 12 | N10: 3.2 | O10: 3.6 | Q10: Mean: for 1/2 hourly and daily periods calculate mean of values across all operational combustion lines for the month
A11: May | B11: 200 | C11: 3.8 | D11: 151.9 | E11: 50 | F11: 3.4 | G11: 3.9 | K11: May | L11: 3.8 | M11: 151.9 | N11: 3.4 | O11: 3.9
A12: Jun | B12: 200 | C12: 6 | D12: 44.8 | E12: 50 | F12: 6 | G12: 13 | K12: Jun | L12: 6 | M12: 44.8 | N12: 6 | O12: 13
A13: Jul | B13: 200 | C13: 4.3 | D13: 33.8 | E13: 50 | F13: 4.2 | G13: 8.1 | K13: Jul | L13: 4.3 | M13: 33.8 | N13: 4.2 | O13: 8.1 | Q13: Maximum: for 1/2 hourly and daily periods use the highest value across all operational combustion lines for the month
A14: Aug | B14: 200 | C14: 5.2 | D14: 116.9 | E14: 50 | F14: 4.4 | G14: 6.2 | K14: Aug | L14: 5.2 | M14: 116.9 | N14: 4.4 | O14: 6.2
A15: Sep | B15: 200 | C15: 5.6 | D15: 88.4 | E15: 50 | F15: 5.1 | G15: 15 | K15: Sep | L15: 5.6 | M15: 88.4 | N15: 5.1 | O15: 15
A16: Oct | B16: 200 | C16: =L16 -> 7.7 | D16: 70.8 | E16: 50 | F16: =N16 -> 7.7 | G16: 13.2 | K16: Oct | L16: 7.7 | M16: 70.8 | N16: 7.7 | O16: 13.2
A17: Nov | B17: 200 | C17: 14.5 | D17: 247.5 | E17: 50 | F17: 6.8 | G17: 9.4 | K17: Nov | L17: 14.5 | M17: 247.5 | N17: 6.8 | O17: 9.4
A18: Dec | B18: 200 | C18: 5.2 | D18: 71.5 | E18: 50 | F18: 5 | G18: 7.6 | K18: Dec | L18: 5.2 | M18: 71.5 | N18: 5 | O18: 7.6
K19: Annual | L19: =AVERAGE(L7:L18) -> 5.5 | M19: =MAX(M7:M18) -> 247.5 | N19: =AVERAGE(N7:N18) -> 4.666666667 | O19: =MAX(O7:O18) -> 15
J21: =+A6 -> 2022 | K21: mg/Nm3 | L21: Monthly 1/2 hourly mean | M21: Monthly 1/2 hourly maximum | N21: Monthly daily mean | O21: Monthly daily maximum
J22: A2 | K22: Jan
K23: Feb
K24: Mar
K25: Apr
K26: May
K27: Jun
K28: Jul
K29: Aug
K30: Sep
K31: Oct
K32: Nov
K33: Dec
K34: Annual | L34: =AVERAGE(L22:L33) ->  | M34: =MAX(M22:M33) -> 0 | N34: =AVERAGE(N22:N33) ->  | O34: =MAX(O22:O33) -> 0
J36: =+A6 -> 2022 | K36: mg/Nm3 | L36: Monthly 1/2 hourly mean | M36: Monthly 1/2 hourly maximum | N36: Monthly daily mean | O36: Monthly daily maximum
J37: A3 | K37: Jan
K38: Feb
K39: Mar
K40: Apr
K41: May
K42: Jun
K43: Jul
K44: Aug
K45: Sep
K46: Oct
K47: Nov
A48: Comments : | K48: Dec
K49: Annual | L49: =AVERAGE(L37:L48) ->  | M49: =MAX(M37:M48) -> 0 | N49: =AVERAGE(N37:N48) ->  | O49: =MAX(O37:O48) -> 0
J51: =+A6 -> 2022 | K51: mg/Nm3 | L51: Monthly 1/2 hourly mean | M51: Monthly 1/2 hourly maximum | N51: Monthly daily mean | O51: Monthly daily maximum
J52: A4 | K52: Jan
K53: Feb
K54: Mar
K55: Apr
K56: May
K57: Jun
K58: Jul
K59: Aug
K60: Sep
K61: Oct
K62: Nov
K63: Dec
K64: Annual | L64: =AVERAGE(L52:L63) ->  | M64: =MAX(M52:M63) -> 0 | N64: =AVERAGE(N52:N63) ->  | O64: =MAX(O52:O63) -> 0
J66: =+A6 -> 2022 | K66: mg/Nm3 | L66: Monthly 1/2 hourly mean | M66: Monthly 1/2 hourly maximum | N66: Monthly daily mean | O66: Monthly daily maximum
J67: A5 | K67: Jan
K68: Feb
K69: Mar
K70: Apr
K71: May
K72: Jun
K73: Jul
K74: Aug
K75: Sep
K76: Oct
K77: Nov
K78: Dec
K79: Annual | L79: =AVERAGE(L67:L78) ->  | M79: =MAX(M67:M78) -> 0 | N79: =AVERAGE(N67:N78) ->  | O79: =MAX(O67:O78) -> 0

Sheet NOx
A1: =+'Cover Page'!$B$29 -> Annual Performance Report 2022 | E1: =+'Cover Page'!$B$33 -> Baddesley EfW Facility
A3: Monitoring of Oxides of Nitrogen emissions | D3: Whole Installation | G3: See Notes in Cell Q3 | J3: =+A3 -> Monitoring of Oxides of Nitrogen emissions | N3: Per Combustion Line | Q3: Notes:
Q4: User to add logic to complete Whole installation, Table A5:G18. From the data in Per Combustion Line, Table J6:O79, subject to No. of lines installed
A5: mg/Nm3 | B5: 1/2 Hourly Reference Periods | E5: Daily Reference Periods
A6: =+'Cover Page'!C39 -> 2022 | B6: 1/2 hourly NOx ELV | C6: Monthly 1/2 hourly mean | D6: Highest 1/2 hourly maximum | E6: Daily NOx ELV | F6: Monthly daily mean | G6: Highest daily maximum | J6: =+A6 -> 2022 | K6: mg/Nm3 | L6: Monthly 1/2 hourly mean | M6: Monthly 1/2 hourly maximum | N6: Monthly daily mean | O6: Monthly daily maximum
A7: Jan | B7: 240 | C7: =L7 -> 85.3 | D7: =M7 -> 284.6 | E7: 120 | F7: =N7 -> 84.9 | G7: =O7 -> 90 | J7: A1 | K7: Jan | L7: 85.3 | M7: 284.6 | N7: 84.9 | O7: 90
A8: Feb | B8: 240 | C8: 84.6 | D8: 109 | E8: 120 | F8: 85 | G8: 87 | K8: Feb | L8: 84.6 | M8: 109 | N8: 85 | O8: 87
A9: Mar | B9: 240 | C9: 84.4 | D9: 110.6 | E9: 120 | F9: 84.5 | G9: 88.6 | K9: Mar | L9: 84.4 | M9: 110.6 | N9: 84.5 | O9: 88.6 | Q9: Whole Installation table A5:G18:
A10: Apr | B10: 240 | C10: 81.1 | D10: 111.9 | E10: 120 | F10: 81 | G10: 83.2 | K10: Apr | L10: 81.1 | M10: 111.9 | N10: 81 | O10: 83.2 | Q10: Mean: for 1/2 hourly and daily periods calculate mean of values across all operational combustion lines for the month
A11: May | B11: 240 | C11: 83.3 | D11: 186.8 | E11: 120 | F11: 83 | G11: 85.2 | K11: May | L11: 83.3 | M11: 186.8 | N11: 83 | O11: 85.2
A12: Jun | B12: 240 | C12: 80.7 | D12: 134.9 | E12: 120 | F12: 79.8 | G12: 85.8 | K12: Jun | L12: 80.7 | M12: 134.9 | N12: 79.8 | O12: 85.8
A13: Jul | B13: 240 | C13: 86 | D13: 129.6 | E13: 120 | F13: 85 | G13: 88.3 | K13: Jul | L13: 86 | M13: 129.6 | N13: 85 | O13: 88.3 | Q13: Maximum: for 1/2 hourly and daily periods use the highest value across all operational combustion lines for the month
A14: Aug | B14: 240 | C14: 82.8 | D14: 146.2 | E14: 120 | F14: 82.7 | G14: 84.4 | K14: Aug | L14: 82.8 | M14: 146.2 | N14: 82.7 | O14: 84.4
A15: Sep | B15: 240 | C15: 81.3 | D15: 215.3 | E15: 120 | F15: 81.6 | G15: 83.9 | K15: Sep | L15: 81.3 | M15: 215.3 | N15: 81.6 | O15: 83.9
A16: Oct | B16: 240 | C16: =L16 -> 77.3 | D16: =M16 -> 103.6 | E16: 120 | F16: =N16 -> 79.2 | G16: =O16 -> 81.5 | K16: Oct | L16: 77.3 | M16: 103.6 | N16: 79.2 | O16: 81.5
A17: Nov | B17: 240 | C17: =L17 -> 83.7 | D17: =M17 -> 236.6 | E17: 120 | F17: =N17 -> 84.4 | G17: =O17 -> 85.3 | K17: Nov | L17: 83.7 | M17: 236.6 | N17: 84.4 | O17: 85.3
A18: Dec | B18: 240 | C18: 83.9 | D18: 258.8 | E18: 120 | F18: 83.5 | G18: 85.6 | K18: Dec | L18: 83.9 | M18: 258.8 | N18: 83.5 | O18: 85.6
K19: Annual | L19: =AVERAGE(L7:L18) -> 82.86666667 | M19: =MAX(M7:M18) -> 284.6 | N19: =AVERAGE(N7:N18) -> 82.88333333 | O19: =MAX(O7:O18) -> 90
J21: =+A6 -> 2022 | K21: mg/Nm3 | L21: Monthly 1/2 hourly mean | M21: Monthly 1/2 hourly maximum | N21: Monthly daily mean | O21: Monthly daily maximum
J22: A2 | K22: Jan
K23: Feb
K24: Mar
K25: Apr
K26: May
K27: Jun
K28: Jul
K29: Aug
K30: Sep
K31: Oct
K32: Nov
K33: Dec
K34: Annual | L34: =AVERAGE(L22:L33) ->  | M34: =MAX(M22:M33) -> 0 | N34: =AVERAGE(N22:N33) ->  | O34: =MAX(O22:O33) -> 0
J36: =+A6 -> 2022 | K36: mg/Nm3 | L36: Monthly 1/2 hourly mean | M36: Monthly 1/2 hourly maximum | N36: Monthly daily mean | O36: Monthly daily maximum
J37: A3 | K37: Jan
K38: Feb
K39: Mar
K40: Apr
K41: May
K42: Jun
K43: Jul
K44: Aug
K45: Sep
K46: Oct
K47: Nov
A48: Comments : | K48: Dec
K49: Annual | L49: =AVERAGE(L37:L48) ->  | M49: =MAX(M37:M48) -> 0 | N49: =AVERAGE(N37:N48) ->  | O49: =MAX(O37:O48) -> 0
J51: =+A6 -> 2022 | K51: mg/Nm3 | L51: Monthly 1/2 hourly mean | M51: Monthly 1/2 hourly maximum | N51: Monthly daily mean | O51: Monthly daily maximum
J52: A4 | K52: Jan
K53: Feb
K54: Mar
K55: Apr
K56: May
K57: Jun
K58: Jul
K59: Aug
K60: Sep
K61: Oct
K62: Nov
K63: Dec
K64: Annual | L64: =AVERAGE(L52:L63) ->  | M64: =MAX(M52:M63) -> 0 | N64: =AVERAGE(N52:N63) ->  | O64: =MAX(O52:O63) -> 0
J66: =+A6 -> 2022 | K66: mg/Nm3 | L66: Monthly 1/2 hourly mean | M66: Monthly 1/2 hourly maximum | N66: Monthly daily mean | O66: Monthly daily maximum
J67: A5 | K67: Jan
K68: Feb
K69: Mar
K70: Apr
K71: May
K72: Jun
K73: Jul
K74: Aug
K75: Sep
K76: Oct
K77: Nov
K78: Dec
K79: Annual | L79: =AVERAGE(L67:L78) ->  | M79: =MAX(M67:M78) -> 0 | N79: =AVERAGE(N67:N78) ->  | O79: =MAX(O67:O78) -> 0

Sheet TOC
A1: =+'Cover Page'!$B$29 -> Annual Performance Report 2022 | E1: =+'Cover Page'!$B$33 -> Baddesley EfW Facility
A3: Monitoring of Total organic carbon emissions | D3: Whole Installation | G3: See Notes in Cell Q3 | J3: =+A3 -> Monitoring of Total organic carbon emissions | N3: Per Combustion Line | Q3: Notes:
Q4: User to add logic to complete Whole installation, Table A5:G18. From the data in Per Combustion Line, Table J6:O79, subject to No. of lines installed
A5: mg/Nm3 | B5: 1/2 Hourly Reference Periods | E5: Daily Reference Periods
A6: =+'Cover Page'!C39 -> 2022 | B6: 1/2 hourly TOC ELV | C6: Monthly 1/2 hourly mean | D6: Highest 1/2 hourly maximum | E6: Daily TOC ELV | F6: Monthly daily mean | G6: Highest daily maximum | J6: =+A6 -> 2022 | K6: mg/Nm3 | L6: Monthly 1/2 hourly mean | M6: Monthly 1/2 hourly maximum | N6: Monthly daily mean | O6: Monthly daily maximum
A7: Jan | B7: 20 | C7: =L7 -> 1.1 | D7: =M7 -> 2 | E7: 10 | F7: =N7 -> 1.1 | G7: =O7 -> 1.2 | J7: A1 | K7: Jan | L7: 1.1 | M7: 2 | N7: 1.1 | O7: 1.2
A8: Feb | B8: 20 | C8: =N8 -> 1 | D8: 1.5 | E8: 10 | F8: 1 | G8: 1.1 | K8: Feb | L8: 1.1 | M8: 1.5 | N8: 1 | O8: 1.1
A9: Mar | B9: 20 | C9: 1 | D9: 1.5 | E9: 10 | F9: 0.9 | G9: 1.1 | K9: Mar | L9: 1 | M9: 1.5 | N9: 0.9 | O9: 1.1 | Q9: Whole Installation table A5:G18:
A10: Apr | B10: 20 | C10: 1 | D10: 1.6 | E10: 10 | F10: 0.9 | G10: 1 | K10: Apr | L10: 1 | M10: 1.6 | N10: 0.9 | O10: 1 | Q10: Mean: for 1/2 hourly and daily periods calculate mean of values across all operational combustion lines for the month
A11: May | B11: 20 | C11: 1.1 | D11: 1.8 | E11: 10 | F11: 1 | G11: 1.2 | K11: May | L11: 1.1 | M11: 1.8 | N11: 1 | O11: 1.2
A12: Jun | B12: 20 | C12: 1.3 | D12: 39.9 | E12: 10 | F12: 1.3 | G12: 4.3 | K12: Jun | L12: 1.3 | M12: 39.9 | N12: 1.3 | O12: 4.3
A13: Jul | B13: 20 | C13: 1.1 | D13: 5.3 | E13: 10 | F13: 1.1 | G13: 1.2 | K13: Jul | L13: 1.1 | M13: 5.3 | N13: 1.1 | O13: 1.2 | Q13: Maximum: for 1/2 hourly and daily periods use the highest value across all operational combustion lines for the month
A14: Aug | B14: 20 | C14: 1.1 | D14: 2.1 | E14: 10 | F14: 1 | G14: 1.2 | K14: Aug | L14: 1.1 | M14: 2.1 | N14: 1 | O14: 1.2
A15: Sep | B15: 20 | C15: 1.1 | D15: 3.2 | E15: 10 | F15: 1 | G15: 1.1 | K15: Sep | L15: 1.1 | M15: 3.2 | N15: 1 | O15: 1.1
A16: Oct | B16: 20 | C16: =L16 -> 2.3 | D16: =M16 -> 136.7 | E16: 10 | F16: =N16 -> 1.1 | G16: =O16 -> 1.2 | K16: Oct | L16: 2.3 | M16: 136.7 | N16: 1.1 | O16: 1.2
A17: Nov | B17: 20 | C17: =L17 -> 1.3 | D17: =M17 -> 24.2 | E17: 10 | F17: =N17 -> 0.7 | G17: =O17 -> 1.3 | K17: Nov | L17: 1.3 | M17: 24.2 | N17: 0.7 | O17: 1.3
A18: Dec | B18: 20 | C18: 1.2 | D18: 1.5 | E18: 10 | F18: 1.1 | G18: 1.2 | K18: Dec | L18: 1.2 | M18: 1.5 | N18: 1.1 | O18: 1.2
K19: Annual | L19: =AVERAGE(L7:L18) -> 1.225 | M19: =MAX(M7:M18) -> 136.7 | N19: =AVERAGE(N7:N18) -> 1.016666667 | O19: =MAX(O7:O18) -> 4.3
J21: =+A6 -> 2022 | K21: mg/Nm3 | L21: Monthly 1/2 hourly mean | M21: Monthly 1/2 hourly maximum | N21: Monthly daily mean | O21: Monthly daily maximum
J22: A2 | K22: Jan
K23: Feb
K24: Mar
K25: Apr
K26: May
K27: Jun
K28: Jul
K29: Aug
K30: Sep
K31: Oct
K32: Nov
K33: Dec
K34: Annual | L34: =AVERAGE(L22:L33) ->  | M34: =MAX(M22:M33) -> 0 | N34: =AVERAGE(N22:N33) ->  | O34: =MAX(O22:O33) -> 0
J36: =+A6 -> 2022 | K36: mg/Nm3 | L36: Monthly 1/2 hourly mean | M36: Monthly 1/2 hourly maximum | N36: Monthly daily mean | O36: Monthly daily maximum
J37: A3 | K37: Jan
K38: Feb
K39: Mar
K40: Apr
K41: May
K42: Jun
K43: Jul
K44: Aug
K45: Sep
K46: Oct
K47: Nov
A48: Comments : | K48: Dec
K49: Annual | L49: =AVERAGE(L37:L48) ->  | M49: =MAX(M37:M48) -> 0 | N49: =AVERAGE(N37:N48) ->  | O49: =MAX(O37:O48) -> 0
J51: =+A6 -> 2022 | K51: mg/Nm3 | L51: Monthly 1/2 hourly mean | M51: Monthly 1/2 hourly maximum | N51: Monthly daily mean | O51: Monthly daily maximum
J52: A4 | K52: Jan
K53: Feb
K54: Mar
K55: Apr
K56: May
K57: Jun
K58: Jul
K59: Aug
K60: Sep
K61: Oct
K62: Nov
K63: Dec
K64: Annual | L64: =AVERAGE(L52:L63) ->  | M64: =MAX(M52:M63) -> 0 | N64: =AVERAGE(N52:N63) ->  | O64: =MAX(O52:O63) -> 0
J66: =+A6 -> 2022 | K66: mg/Nm3 | L66: Monthly 1/2 hourly mean | M66: Monthly 1/2 hourly maximum | N66: Monthly daily mean | O66: Monthly daily maximum
J67: A5 | K67: Jan
K68: Feb
K69: Mar
K70: Apr
K71: May
K72: Jun
K73: Jul
K74: Aug
K75: Sep
K76: Oct
K77: Nov
K78: Dec
K79: Annual | L79: =AVERAGE(L67:L78) ->  | M79: =MAX(M67:M78) -> 0 | N79: =AVERAGE(N67:N78) ->  | O79: =MAX(O67:O78) -> 0

Sheet Particulates
A1: =+'Cover Page'!$B$29 -> Annual Performance Report 2022 | E1: =+'Cover Page'!$B$33 -> Baddesley EfW Facility
A3: Monitoring of Particulate matter emissions | D3: Whole Installation | G3: See Notes in Cell Q3 | J3: =+A3 -> Monitoring of Particulate matter emissions | N3: Per Combustion Line | Q3: Notes:
Q4: User to add logic to complete Whole installation, Table A5:G18. From the data in Per Combustion Line, Table J6:O79, subject to No. of lines installed
A5: mg/Nm3 | B5: 1/2 Hourly Reference Periods | E5: Daily Reference Periods
A6: =+'Cover Page'!C39 -> 2022 | B6: 1/2 hourly PM ELV | C6: Monthly 1/2 hourly mean | D6: Highest 1/2 hourly maximum | E6: Daily PM ELV | F6: Monthly daily mean | G6: Highest daily maximum | J6: =+A6 -> 2022 | K6: mg/Nm3 | L6: Monthly 1/2 hourly mean | M6: Monthly 1/2 hourly maximum | N6: Monthly daily mean | O6: Monthly daily maximum
A7: Jan | B7: 30 | C7: =L7 -> 0.1 | D7: =M7 -> 0.3 | E7: 10 | F7: =N7 -> 0 | G7: =O7 -> 0.1 | J7: A1 | K7: Jan | L7: 0.1 | M7: 0.3 | N7: 0 | O7: 0.1
A8: Feb | B8: 30 | C8: 0.1 | D8: 0.5 | E8: 10 | F8: 0 | G8: 0.2 | K8: Feb | L8: 0.1 | M8: 0.5 | N8: 0 | O8: 0.2
A9: Mar | B9: 30 | C9: 0.1 | D9: 0.3 | E9: 10 | F9: 0 | G9: 0.1 | K9: Mar | L9: 0.1 | M9: 0.3 | N9: 0 | O9: 0.1 | Q9: Whole Installation table A5:G18:
A10: Apr | B10: 30 | C10: 0.1 | D10: 0.2 | E10: 10 | F10: 0 | G10: 0.1 | K10: Apr | L10: 0.1 | M10: 0.2 | N10: 0 | O10: 0.1 | Q10: Mean: for 1/2 hourly and daily periods calculate mean of values across all operational combustion lines for the month
A11: May | B11: 30 | C11: 0.1 | D11: 0.4 | E11: 10 | F11: 0 | G11: 0.2 | K11: May | L11: 0.1 | M11: 0.4 | N11: 0 | O11: 0.2
A12: Jun | B12: 30 | C12: 0.4 | D12: 4.1 | E12: 10 | F12: 0.3 | G12: 1.8 | K12: Jun | L12: 0.4 | M12: 4.1 | N12: 0.3 | O12: 1.8
A13: Jul | B13: 30 | C13: 0.6 | D13: 12.4 | E13: 10 | F13: 0.6 | G13: 7.9 | K13: Jul | L13: 0.6 | M13: 12.4 | N13: 0.6 | O13: 7.9 | Q13: Maximum: for 1/2 hourly and daily periods use the highest value across all operational combustion lines for the month
A14: Aug | B14: 30 | C14: 0.2 | D14: 5.6 | E14: 10 | F14: 0.1 | G14: 0.9 | K14: Aug | L14: 0.2 | M14: 5.6 | N14: 0.1 | O14: 0.9
A15: Sep | B15: 30 | C15: 0.6 | D15: 10.5 | E15: 10 | F15: 0.5 | G15: 2.3 | K15: Sep | L15: 0.6 | M15: 10.5 | N15: 0.5 | O15: 2.3
A16: Oct | B16: 30 | C16: =L16 -> 0.1 | D16: =M16 -> 2 | E16: 10 | F16: =N16 -> 0.1 | G16: =O16 -> 0.3 | K16: Oct | L16: 0.1 | M16: 2 | N16: 0.1 | O16: 0.3
A17: Nov | B17: 30 | C17: =L17 -> 0.3 | D17: =M17 -> 5.1 | E17: 10 | F17: =N17 -> 0 | G17: =O17 -> 0.1 | K17: Nov | L17: 0.3 | M17: 5.1 | N17: 0 | O17: 0.1
A18: Dec | B18: 30 | C18: =L18 -> 0.1 | D18: 0.8 | E18: 10 | F18: 0.1 | G18: 0.1 | K18: Dec | L18: 0.1 | M18: 0.8 | N18: 0.1 | O18: 0.1
K19: Annual | L19: =AVERAGE(L7:L18) -> 0.2333333333 | M19: =MAX(M7:M18) -> 12.4 | N19: =AVERAGE(N7:N18) -> 0.1416666667 | O19: =MAX(O7:O18) -> 7.9
J21: =+A6 -> 2022 | K21: mg/Nm3 | L21: Monthly 1/2 hourly mean | M21: Monthly 1/2 hourly maximum | N21: Monthly daily mean | O21: Monthly daily maximum
J22: A2 | K22: Jan
K23: Feb
K24: Mar
K25: Apr
K26: May
K27: Jun
K28: Jul
K29: Aug
K30: Sep
K31: Oct
K32: Nov
K33: Dec
K34: Annual | L34: =AVERAGE(L22:L33) ->  | M34: =MAX(M22:M33) -> 0 | N34: =AVERAGE(N22:N33) ->  | O34: =MAX(O22:O33) -> 0
J36: =+A6 -> 2022 | K36: mg/Nm3 | L36: Monthly 1/2 hourly mean | M36: Monthly 1/2 hourly maximum | N36: Monthly daily mean | O36: Monthly daily maximum
J37: A3 | K37: Jan
K38: Feb
K39: Mar
K40: Apr
K41: May
K42: Jun
K43: Jul
K44: Aug
K45: Sep
K46: Oct
K47: Nov
A48: Comments : | K48: Dec
K49: Annual | L49: =AVERAGE(L37:L48) ->  | M49: =MAX(M37:M48) -> 0 | N49: =AVERAGE(N37:N48) ->  | O49: =MAX(O37:O48) -> 0
J51: =+A6 -> 2022 | K51: mg/Nm3 | L51: Monthly 1/2 hourly mean | M51: Monthly 1/2 hourly maximum | N51: Monthly daily mean | O51: Monthly daily maximum
J52: A4 | K52: Jan
K53: Feb
K54: Mar
K55: Apr
K56: May
K57: Jun
K58: Jul
K59: Aug
K60: Sep
K61: Oct
K62: Nov
K63: Dec
K64: Annual | L64: =AVERAGE(L52:L63) ->  | M64: =MAX(M52:M63) -> 0 | N64: =AVERAGE(N52:N63) ->  | O64: =MAX(O52:O63) -> 0
J66: =+A6 -> 2022 | K66: mg/Nm3 | L66: Monthly 1/2 hourly mean | M66: Monthly 1/2 hourly maximum | N66: Monthly daily mean | O66: Monthly daily maximum
J67: A5 | K67: Jan
K68: Feb
K69: Mar
K70: Apr
K71: May
K72: Jun
K73: Jul
K74: Aug
K75: Sep
K76: Oct
K77: Nov
K78: Dec
K79: Annual | L79: =AVERAGE(L67:L78) ->  | M79: =MAX(M67:M78) -> 0 | N79: =AVERAGE(N67:N78) ->  | O79: =MAX(O67:O78) -> 0

Sheet CO 0.5hourly
A1: =+'Cover Page'!$B$29 -> Annual Performance Report 2022 | E1: =+'Cover Page'!$B$33 -> Baddesley EfW Facility
A3: Monitoring of Carbon Monoxide (half hourly) | D3: Whole Installation | G3: See Notes in Cell Q3 | J3: =+A3 -> Monitoring of Carbon Monoxide (half hourly) | N3: Per Combustion Line | Q3: Notes:
Q4: User to add logic to complete Whole installation, Table A5:G18. From the data in Per Combustion Line, Table J6:O79, subject to No. of lines installed
A5: mg/Nm3 | B5: 1/2 Hourly Reference Periods | E5: Daily Reference Periods
A6: =+'Cover Page'!C39 -> 2022 | B6: 1/2 hourly CO ELV | C6: Monthly 1/2 hourly mean | D6: Highest 1/2 hourly maximum | E6: Daily CO ELV | F6: Monthly daily mean | G6: Highest daily maximum | J6: =+A6 -> 2022 | K6: mg/Nm3 | L6: Monthly 1/2 hourly mean | M6: Monthly 1/2 hourly maximum | N6: Monthly daily mean | O6: Monthly daily maximum
A7: Jan | B7: 100 | C7: =L7 -> 2.4 | D7: =M7 -> 17.3 | E7: 50 | F7: =N7 -> 2.3 | G7: =O7 -> 5.9 | J7: A1 | K7: Jan | L7: 2.4 | M7: 17.3 | N7: 2.3 | O7: 5.9
A8: Feb | B8: =+B7 -> 100 | C8: =L8 -> 3.6 | D8: 14.7 | E8: =+E7 -> 50 | F8: =N8 -> 3.3 | G8: =O8 -> 4.6 | K8: Feb | L8: 3.6 | M8: 14.7 | N8: 3.3 | O8: 4.6
A9: Mar | B9: =+B8 -> 100 | C9: 3.4 | D9: 18.9 | E9: =+E8 -> 50 | F9: 3.3 | G9: 5.2 | K9: Mar | L9: 3.4 | M9: 18.9 | N9: 3.3 | O9: 5.2 | Q9: Whole Installation table A5:G18:
A10: Apr | B10: 100 | C10: 2.3 | D10: 104.3 | E10: 50 | F10: 2.2 | G10: 3.8 | K10: Apr | L10: 2.3 | M10: 104.3 | N10: 2.2 | O10: 3.8 | Q10: Mean: for 1/2 hourly and daily periods calculate mean of values across all operational combustion lines for the month
A11: May | B11: 100 | C11: 2.2 | D11: 165 | E11: 50 | F11: 1.7 | G11: 2.2 | K11: May | L11: 2.2 | M11: 165 | N11: 1.7 | O11: 2.2
A12: Jun | B12: 100 | C12: 15.7 | D12: 2908.5 | E12: 50 | F12: 17 | G12: 122 | K12: Jun | L12: 15.7 | M12: 2908.5 | N12: 17 | O12: 122
A13: Jul | B13: 100 | C13: 7.2 | D13: 1212 | E13: 50 | F13: 6.4 | G13: 9.1 | K13: Jul | L13: 7.2 | M13: 1212 | N13: 6.4 | O13: 9.1 | Q13: Maximum: for 1/2 hourly and daily periods use the highest value across all operational combustion lines for the month
A14: Aug | B14: 100 | C14: 5.7 | D14: 37.6 | E14: 50 | F14: 5.6 | G14: 7.9 | K14: Aug | L14: 5.7 | M14: 37.6 | N14: 5.6 | O14: 7.9
A15: Sep | B15: 100 | C15: 5.1 | D15: 112.9 | E15: 50 | F15: 4.9 | G15: 7.1 | K15: Sep | L15: 5.1 | M15: 112.9 | N15: 4.9 | O15: 7.1
A16: Oct | B16: 100 | C16: 26.4 | D16: 3180.2 | E16: 50 | F16: 4.2 | G16: 6 | K16: Oct | L16: 26.4 | M16: 3180.2 | N16: 4.2 | O16: 6
A17: Nov | B17: 100 | C17: 20 | D17: 1674.2 | E17: 50 | F17: 9.5 | G17: 10.3 | K17: Nov | L17: 20 | M17: 1674.2 | N17: 9.5 | O17: 10.3
A18: Dec | B18: 100 | C18: 8.5 | D18: 21.3 | E18: 50 | F18: 7.6 | G18: 13.5 | K18: Dec | L18: 8.5 | M18: 21.3 | N18: 7.6 | O18: 13.5
K19: Annual | L19: =AVERAGE(L7:L18) -> 8.541666667 | M19: =MAX(M7:M18) -> 3180.2 | N19: =AVERAGE(N7:N18) -> 5.666666667 | O19: =MAX(O7:O18) -> 122
J21: =+A6 -> 2022 | K21: mg/Nm3 | L21: Monthly 1/2 hourly mean | M21: Monthly 1/2 hourly maximum | N21: Monthly daily mean | O21: Monthly daily maximum
J22: A2 | K22: Jan
K23: Feb
K24: Mar
K25: Apr
K26: May
K27: Jun
K28: Jul
K29: Aug
K30: Sep
K31: Oct
K32: Nov
K33: Dec
K34: Annual | L34: =AVERAGE(L22:L33) ->  | M34: =MAX(M22:M33) -> 0 | N34: =AVERAGE(N22:N33) ->  | O34: =MAX(O22:O33) -> 0
J36: =+A6 -> 2022 | K36: mg/Nm3 | L36: Monthly 1/2 hourly mean | M36: Monthly 1/2 hourly maximum | N36: Monthly daily mean | O36: Monthly daily maximum
J37: A3 | K37: Jan
K38: Feb
K39: Mar
K40: Apr
K41: May
K42: Jun
K43: Jul
K44: Aug
K45: Sep
K46: Oct
K47: Nov
A48: Comments : | K48: Dec
K49: Annual | L49: =AVERAGE(L37:L48) ->  | M49: =MAX(M37:M48) -> 0 | N49: =AVERAGE(N37:N48) ->  | O49: =MAX(O37:O48) -> 0
J51: =+A6 -> 2022 | K51: mg/Nm3 | L51: Monthly 1/2 hourly mean | M51: Monthly 1/2 hourly maximum | N51: Monthly daily mean | O51: Monthly daily maximum
J52: A4 | K52: Jan
K53: Feb
K54: Mar
K55: Apr
K56: May
K57: Jun
K58: Jul
K59: Aug
K60: Sep
K61: Oct
K62: Nov
K63: Dec
K64: Annual | L64: =AVERAGE(L52:L63) ->  | M64: =MAX(M52:M63) -> 0 | N64: =AVERAGE(N52:N63) ->  | O64: =MAX(O52:O63) -> 0
J66: =+A6 -> 2022 | K66: mg/Nm3 | L66: Monthly 1/2 hourly mean | M66: Monthly 1/2 hourly maximum | N66: Monthly daily mean | O66: Monthly daily maximum
J67: A5 | K67: Jan
K68: Feb
K69: Mar
K70: Apr
K71: May
K72: Jun
K73: Jul
K74: Aug
K75: Sep
K76: Oct
K77: Nov
K78: Dec
K79: Annual | L79: =AVERAGE(L67:L78) ->  | M79: =MAX(M67:M78) -> 0 | N79: =AVERAGE(N67:N78) ->  | O79: =MAX(O67:O78) -> 0

Sheet CO 95% 10 min
A1: =+'Cover Page'!$B$29 -> Annual Performance Report 2022 | E1: =+'Cover Page'!$B$33 -> Baddesley EfW Facility
A3: Monitoring of Carbon Monoxide (10-minute avg) | E3: Whole Installation | H3: See Notes in Cell S3 | J3: =+A3 -> Monitoring of Carbon Monoxide (10-minute avg) | O3: Per Combustion Line | Q3: Notes: | S3: Notes:
S4: User to add logic to complete Whole installation, Table A5:H18. From the data in Per Combustion Line, Table K6:Q79, subject to No. of lines installed
A5: mg/Nm3 | B5: 10-minute Reference Periods | F5: Daily Reference Periods
A6: =+'Cover Page'!C39 -> 2022 | B6: 95%ile 10-min avg CO ELV | C6: 95%ile 10-min avg maximum | D6: Monthly CO 10-min avg mean | E6: 10-min avg maximum | F6: Daily CO ELV | G6: Monthly daily mean | H6: Highest daily maximum | K6: =+A6 -> 2022 | L6: mg/Nm3 | M6: 95%ile 10-min avg maximum | N6: Monthly CO 10-min avg mean | O6: 10-min avg maximum | P6: Monthly daily mean | Q6: Monthly daily maximum
A7: Jan | B7: No limit | C7: =M7 -> 11 | D7: =N7 -> 0 | E7: =O7 -> 39 | F7: 50 | G7: =P7 -> 5.9 | H7: 6.1 | K7: A1 | L7: Jan | M7: 11 | N7: 0 | O7: 39 | P7: 5.9 | Q7: 6.1
A8: Feb | B8: =+B7 -> No limit | C8: =M8 -> 9.6 | D8: 3.7 | E8: =O8 -> 34.7 | F8: =+F7 -> 50 | G8: 4.6 | H8: 4.6 | L8: Feb | M8: 9.6 | N8: 3.7 | O8: 34.7 | P8: 4.6 | Q8: 4.6
A9: Mar | B9: =+B8 -> No limit | C9: 8.4 | D9: 3.3 | E9: 35.3 | F9: =+F8 -> 50 | G9: 5.2 | H9: 5.2 | L9: Mar | M9: 8.4 | N9: 3.3 | O9: 35.3 | P9: 5.2 | Q9: 5.2 | S9: Whole Installation table A5:H18:
A10: Apr | B10: No limit | C10: 7.8 | D10: 2.3 | E10: 160.7 | F10: 50 | G10: 3.8 | H10: 3.9 | L10: Apr | M10: 7.8 | N10: 2.3 | O10: 160.7 | P10: 3.8 | Q10: 3.9 | S10: Mean: for 10-min and daily periods use average of all operational combustion lines.
A11: May | B11: No limit | C11: 4.7 | D11: 2.1 | E11: 363.3 | F11: 50 | G11: 2.2 | H11: 2.3 | L11: May | M11: 4.7 | N11: 2.1 | O11: 363.3 | P11: 2.2 | Q11: 2.3
A12: Jun | B12: No limit | C12: 8.4 | D12: 16.9 | E12: 4563.9 | F12: 50 | G12: 122 | H12: 122 | L12: Jun | M12: 8.4 | N12: 16.9 | O12: 4563.9 | P12: 122 | Q12: 122
A13: Jul | B13: No limit | C13: 13.3 | D13: 7.3 | E13: 3082.9 | F13: 50 | G13: 9.1 | H13: 8.8 | L13: Jul | M13: 13.3 | N13: 7.3 | O13: 3082.9 | P13: 9.1 | Q13: 8.8 | S13: Maximum: for 10-min and daily periods use the highest of all operational combustion lines in any month.
A14: Aug | B14: No limit | C14: 11.6 | D14: 5.7 | E14: 100.6 | F14: 50 | G14: 7.9 | H14: 7.9 | L14: Aug | M14: 11.6 | N14: 5.7 | O14: 100.6 | P14: 7.9 | Q14: 7.9
A15: Sep | B15: No limit | C15: 25.9 | D15: 5.2 | E15: 207.1 | F15: 50 | G15: 7.1 | H15: 9.8 | L15: Sep | M15: 25.9 | N15: 5.2 | O15: 207.1 | P15: 7.1 | Q15: 9.8
A16: Oct | B16: No limit | C16: 12.3 | D16: =N16 -> 26.4 | E16: 4100.6 | F16: 50 | G16: =P16 -> 6 | H16: 6 | L16: Oct | M16: 12.3 | N16: 26.4 | O16: 4100.6 | P16: 6 | Q16: 6
A17: Nov | B17: No limit | C17: 18.3 | D17: 16.8 | E17: 2067.5 | F17: 50 | G17: 10.3 | H17: 10.3 | L17: Nov | M17: 18.3 | N17: 16.8 | O17: 2067.5 | P17: 10.3 | Q17: 10.3
A18: Dec | B18: No limit | C18: 19.9 | D18: 8.5 | E18: 22.6 | F18: 50 | G18: 13.5 | H18: 13.5 | L18: Dec | M18: 19.9 | N18: 8.5 | O18: 22.6 | P18: 13.5 | Q18: 13.5
L19: Annual | M19: =MAX(M7:M18) -> 25.9 | N19: =AVERAGE(N7:N18) -> 8.183333333 | O19: =MAX(O7:O18) -> 4563.9 | P19: =AVERAGE(P7:P18) -> 16.46666667 | Q19: =MAX(Q7:Q18) -> 122
K21: =+A6 -> 2022 | L21: mg/Nm3 | M21: 95%ile 10-min avg maximum | N21: Monthly CO 10-min avg mean | O21: 10-min avg maximum | P21: Monthly daily mean | Q21: Monthly daily maximum
K22: A2 | L22: Jan
L23: Feb
L24: Mar
L25: Apr
L26: May
L27: Jun
L28: Jul
L29: Aug
L30: Sep
L31: Oct
L32: Nov
L33: Dec
L34: Annual | M34: =AVERAGE(M22:M33) ->  | O34: =MAX(O22:O33) -> 0 | P34: =AVERAGE(P22:P33) ->  | Q34: =MAX(Q22:Q33) -> 0
K36: =+A6 -> 2022 | L36: mg/Nm3 | M36: 95%ile 10-min avg maximum | N36: Monthly CO 10-min avg mean | O36: 10-min avg maximum | P36: Monthly daily mean | Q36: Monthly daily maximum
K37: A3 | L37: Jan
L38: Feb
L39: Mar
L40: Apr
L41: May
L42: Jun
L43: Jul
L44: Aug
L45: Sep
L46: Oct
L47: Nov
A48: Comments : | L48: Dec
A49: Environment Agency explanatory note: The 10-minute average ELV is based on the “95th percentile”. In this case this means that 95% of the 10 minute averages in the relevant 24-hour period (i.e. 137) must be below 150 mg/Nm3, and 5% (i.e. 7) are allowed to be any value above 150 mg/Nm3. Whilst we expect operators to minimise CO emissions at all times, it is perfectly acceptable for the value of the maximum 10-minute average to be above 150 mg/Nm3, provided the 95th percentile ELV has been met for that period. | L49: Annual | M49: =AVERAGE(M37:M48) ->  | O49: =MAX(O37:O48) -> 0 | P49: =AVERAGE(P37:P48) ->  | Q49: =MAX(Q37:Q48) -> 0
K51: =+A6 -> 2022 | L51: mg/Nm3 | M51: 95%ile 10-min avg maximum | N51: Monthly CO 10-min avg mean | O51: 10-min avg maximum | P51: Monthly daily mean | Q51: Monthly daily maximum
K52: A4 | L52: Jan
L53: Feb
L54: Mar
L55: Apr
L56: May
L57: Jun
L58: Jul
L59: Aug
L60: Sep
L61: Oct
L62: Nov
L63: Dec
L64: Annual | M64: =AVERAGE(M52:M63) ->  | O64: =MAX(O52:O63) -> 0 | P64: =AVERAGE(P52:P63) ->  | Q64: =MAX(Q52:Q63) -> 0
K66: =+A6 -> 2022 | L66: mg/Nm3 | M66: 95%ile 10-min avg maximum | N66: Monthly CO 10-min avg mean | O66: 10-min avg maximum | P66: Monthly daily mean | Q66: Monthly daily maximum
K67: A5 | L67: Jan
L68: Feb
L69: Mar
L70: Apr
L71: May
L72: Jun
L73: Jul
L74: Aug
L75: Sep
L76: Oct
L77: Nov
L78: Dec
L79: Annual | M79: =AVERAGE(M67:M78) ->  | O79: =MAX(O67:O78) -> 0 | P79: =AVERAGE(P67:P78) ->  | Q79: =MAX(Q67:Q78) -> 0

Sheet NH3
A1: =+'Cover Page'!$B$29 -> Annual Performance Report 2022 | E1: =+'Cover Page'!$B$33 -> Baddesley EfW Facility
A3: Monitoring of Ammnonia emissions | D3: Whole Installation | G3: See Notes in Cell Q3 | J3: =+A3 -> Monitoring of Ammnonia emissions | N3: Per Combustion Line | Q3: Notes:
Q4: User to add logic to complete Whole installation, Table A5:G18. From the data in Per Combustion Line, Table J6:O79, subject to No. of lines installed
A5: mg/Nm3 | B5: 1/2 Hourly Reference Periods | E5: Daily Reference Periods
A6: =+'Cover Page'!C39 -> 2022 | B6: 1/2 hourly NH3 ELV | C6: Monthly 1/2 hourly mean | D6: Highest 1/2 hourly maximum | E6: Daily NH3 ELV | F6: Monthly daily mean | G6: Highest daily maximum | J6: =+A6 -> 2022 | K6: mg/Nm3 | L6: Monthly 1/2 hourly mean | M6: Monthly 1/2 hourly maximum | N6: Monthly daily mean | O6: Monthly daily maximum
A7: Jan | B7: 0 | C7: =L7 -> 0.2 | D7: =M7 -> 0.3 | E7: 5.7 | F7: =N7 -> 0.19 | G7: =O7 -> 0.2 | J7: A1 | K7: Jan | L7: 0.2 | M7: 0.3 | N7: 0.19 | O7: 0.2
A8: Feb | B8: =+B7 -> 0 | C8: =L8 -> 0.2 | D8: =M8 -> 0.3 | E8: =+E7 -> 5.7 | F8: 0.2 | G8: 0.2 | K8: Feb | L8: 0.2 | M8: 0.3 | N8: 0.2 | O8: 0.2
A9: Mar | B9: =+B8 -> 0 | C9: 0.3 | D9: 0.7 | E9: =+E8 -> 5.7 | F9: 0.26 | G9: 0.4 | K9: Mar | L9: 0.3 | M9: 0.7 | N9: 0.26 | O9: 0.4 | Q9: Whole Installation table A5:G18:
A10: Apr | B10: 0 | C10: 0.2 | D10: 0.6 | E10: 5.7 | F10: 0.22 | G10: 0.4 | K10: Apr | L10: 0.2 | M10: 0.6 | N10: 0.22 | O10: 0.4 | Q10: Mean: for 1/2 hourly and daily periods calculate mean of values across all operational combustion lines for the month
A11: May | B11: 0 | C11: 0.2 | D11: 0.6 | E11: 5.7 | F11: 0.21 | G11: 0.3 | K11: May | L11: 0.2 | M11: 0.6 | N11: 0.21 | O11: 0.3
A12: Jun | B12: 0 | C12: 0.4 | D12: 57.8 | E12: 5.7 | F12: 0.2 | G12: 0.2 | K12: Jun | L12: 0.4 | M12: 57.8 | N12: 0.2 | O12: 0.2
A13: Jul | B13: 0 | C13: 0.2 | D13: 0.3 | E13: 5.7 | F13: 0.2 | G13: 0.2 | K13: Jul | L13: 0.2 | M13: 0.3 | N13: 0.2 | O13: 0.2 | Q13: Maximum: for 1/2 hourly and daily periods use the highest value across all operational combustion lines for the month
A14: Aug | B14: 0 | C14: 0.2 | D14: 0.6 | E14: 5.7 | F14: 0.21 | G14: 0.3 | K14: Aug | L14: 0.2 | M14: 0.6 | N14: =((18*0.2)+0.6)/20 -> 0.21 | O14: 0.3
A15: Sep | B15: 0 | C15: 0.2 | D15: 0.8 | E15: 5.7 | F15: 0.205 | G15: 0.3 | K15: Sep | L15: 0.2 | M15: 0.8 | N15: =((19*0.2)+0.3)/20 -> 0.205 | O15: 0.3
A16: Oct | B16: 0 | C16: =L16 -> 0.2 | D16: 0.9 | E16: 5.7 | F16: =N16 -> 0.2 | G16: 0.2 | K16: Oct | L16: 0.2 | M16: 0.9 | N16: 0.2 | O16: 0.2
A17: Nov | B17: 0 | C17: 0.2 | D17: 0.5 | E17: 5.7 | F17: 0.25 | G17: 0.3 | K17: Nov | L17: 0.2 | M17: 0.5 | N17: 0.25 | O17: 0.3
A18: Dec | B18: 0 | C18: 0.2 | D18: 0.8 | E18: 5.7 | F18: 0.22 | G18: 0.4 | K18: Dec | L18: 0.2 | M18: 0.8 | N18: 0.22 | O18: 0.4
K19: Annual | L19: =AVERAGE(L7:L18) -> 0.225 | M19: =MAX(M7:M18) -> 57.8 | N19: =AVERAGE(N7:N18) -> 0.21375 | O19: =MAX(O7:O18) -> 0.4
J21: =+A6 -> 2022 | K21: mg/Nm3 | L21: Monthly 1/2 hourly mean | M21: Monthly 1/2 hourly maximum | N21: Monthly daily mean | O21: Monthly daily maximum
J22: A2 | K22: Jan
K23: Feb
K24: Mar
K25: Apr
K26: May
K27: Jun
K28: Jul
K29: Aug
K30: Sep
K31: Oct
K32: Nov
K33: Dec
K34: Annual | L34: =AVERAGE(L22:L33) ->  | M34: =MAX(M22:M33) -> 0 | N34: =AVERAGE(N22:N33) ->  | O34: =MAX(O22:O33) -> 0
J36: =+A6 -> 2022 | K36: mg/Nm3 | L36: Monthly 1/2 hourly mean | M36: Monthly 1/2 hourly maximum | N36: Monthly daily mean | O36: Monthly daily maximum
J37: A3 | K37: Jan
K38: Feb
K39: Mar
K40: Apr
K41: May
K42: Jun
K43: Jul
K44: Aug
K45: Sep
K46: Oct
K47: Nov
A48: Comments : | K48: Dec
A49: An indicated ELV value of zero in the table above means that no ammonia limit is set in the permit. | K49: Annual | L49: =AVERAGE(L37:L48) ->  | M49: =MAX(M37:M48) -> 0 | N49: =AVERAGE(N37:N48) ->  | O49: =MAX(O37:O48) -> 0
J51: =+A6 -> 2022 | K51: mg/Nm3 | L51: Monthly 1/2 hourly mean | M51: Monthly 1/2 hourly maximum | N51: Monthly daily mean | O51: Monthly daily maximum
J52: A4 | K52: Jan
K53: Feb
K54: Mar
K55: Apr
K56: May
K57: Jun
K58: Jul
K59: Aug
K60: Sep
K61: Oct
K62: Nov
K63: Dec
K64: Annual | L64: =AVERAGE(L52:L63) ->  | M64: =MAX(M52:M63) -> 0 | N64: =AVERAGE(N52:N63) ->  | O64: =MAX(O52:O63) -> 0
J66: =+A6 -> 2022 | K66: mg/Nm3 | L66: Monthly 1/2 hourly mean | M66: Monthly 1/2 hourly maximum | N66: Monthly daily mean | O66: Monthly daily maximum
J67: A5 | K67: Jan
K68: Feb
K69: Mar
K70: Apr
K71: May
K72: Jun
K73: Jul
K74: Aug
K75: Sep
K76: Oct
K77: Nov
K78: Dec
K79: Annual | L79: =AVERAGE(L67:L78) ->  | M79: =MAX(M67:M78) -> 0 | N79: =AVERAGE(N67:N78) ->  | O79: =MAX(O67:O78) -> 0
